Department,Entity,Date of Payment,Expense Type,Expense Area,Supplier,Transaction Number,Amount
UK Trade and Investment Programme,UK Trade and Investment Programme,01/06/2011 ,Other IT Services - CBBC,UK Trade & Investment - International Group,S & S DATA LTD,147931,972.40 
UK Trade and Investment Programme,UK Trade and Investment Programme,01/06/2011 ,Car Hire and Leasing - ,UK Trade & Investment - Defence and Security Organisation,ANDREW DUBBERLEY & AMANDA MOORE T/A ADS ASSOCIATES,147960,175.00 
UK Trade and Investment Programme,UK Trade and Investment Programme,01/06/2011 ,Scheme Management Charges - ,UK Trade & Investment - Defence and Security Organisation,PAUL WILLIAMS,147930,10142.50 
UK Trade and Investment Programme,UK Trade and Investment Programme,01/06/2011 ,Scheme Management Charges - Gateway to Global Growth,UK Trade & Investment - Regional Directorate,GWE BUSINESS WEST LTD,147980,1081.25 
UK Trade and Investment Programme,UK Trade and Investment Programme,01/06/2011 ,Scheme Management Charges - International Trade Team Contracting,UK Trade & Investment - Regional Directorate,COVENTRY UNIVERSITY ENTERPRISES LTD,147979,5416.00 
UK Trade and Investment Programme,UK Trade and Investment Programme,01/06/2011 ,Scheme Management Charges - International Trade Team Contracting,UK Trade & Investment - Regional Directorate,GWE BUSINESS WEST LTD,147980,146866.79 
UK Trade and Investment Programme,UK Trade and Investment Programme,01/06/2011 ,Entertainment UK - Inward Investment Events,UK Trade & Investment - Business Group,"Personal Expense, Name Witheld",505178,105.75 
UK Trade and Investment Programme,UK Trade and Investment Programme,01/06/2011 ,Travel and Subsistence O'seas - Market Visit Scheme,UK Trade & Investment - Regional Directorate,EUREKA HEAT RECOVERY SYSTEMS LTD,147959,260.00 
UK Trade and Investment Programme,UK Trade and Investment Programme,01/06/2011 ,Travel and Subsistence O'seas - Market Visit Scheme,UK Trade & Investment - Regional Directorate,THE SAUCE PARTNERSHIP,147929,400.00 
UK Trade and Investment Programme,UK Trade and Investment Programme,01/06/2011 ,Venue Hire - Passport Development & Events,UK Trade & Investment - Regional Directorate,GWE BUSINESS WEST LTD,147980,1020.00 
UK Trade and Investment Programme,UK Trade and Investment Programme,01/06/2011 ,Training - General - Passport Development & Events,UK Trade & Investment - Regional Directorate,GWE BUSINESS WEST LTD,147980,2000.00 
UK Trade and Investment Programme,UK Trade and Investment Programme,01/06/2011 ,Scheme Management Charges - R&D Programme Sector Specialists,UK Trade & Investment - Business Group,PA CONSULTING GROUP LTD,147926,281802.06 
UK Trade and Investment Programme,UK Trade and Investment Programme,01/06/2011 ,Research and Development Costs - Sector Events - Abroad,UK Trade & Investment - Sectors Group,CHINA BRITAIN BUSINESS COUNCIL,147975,2618.87 
UK Trade and Investment Programme,UK Trade and Investment Programme,01/06/2011 ,Event Management - Sector Events - UK,UK Trade & Investment - Sectors Group,THE LAW SOCIETY,147912,2500.00 
UK Trade and Investment Programme,UK Trade and Investment Programme,01/06/2011 ,Catering - Sector Events - UK,UK Trade & Investment - Sectors Group,THE NATIONAL EXHIBITION CENTRE,147970,1343.58 
UK Trade and Investment Programme,UK Trade and Investment Programme,01/06/2011 ,Venue Hire - Sector Events - UK,UK Trade & Investment - Sectors Group,THE NATIONAL EXHIBITION CENTRE,147976,680.00 
UK Trade and Investment Programme,UK Trade and Investment Programme,01/06/2011 ,Basic Grants - Trade Show Access Programme,UK Trade & Investment - Sectors Group,BRITISH PIG ASSOCIATION,147973,9000.00 
UK Trade and Investment Programme,UK Trade and Investment Programme,01/06/2011 ,Sponsors Grants - Trade Show Access Programme,UK Trade & Investment - Sectors Group,BRITISH PIG ASSOCIATION,147974,1200.00 
UK Trade and Investment Programme,UK Trade and Investment Programme,01/06/2011 ,Basic Grants - Trade Show Access Programme,UK Trade & Investment - Sectors Group,BRITISH WATER,147971,4000.00 
UK Trade and Investment Programme,UK Trade and Investment Programme,01/06/2011 ,Basic Grants - Trade Show Access Programme,UK Trade & Investment - Sectors Group,BRITISH WATER,147972,960.00 
UK Trade and Investment Programme,UK Trade and Investment Programme,02/06/2011 ,Scheme Management Charges - International Trade Team Contracting,UK Trade & Investment - Regional Directorate,MEDILINK (YORKSHIRE AND HUMBER) LTD,147985,7535.00 
UK Trade and Investment Programme,UK Trade and Investment Programme,02/06/2011 ,Rental of Accomodation - International Trade Team Contracting,UK Trade & Investment - Regional Directorate,SOUTH EAST ENGLAND DEVELOPMENT AGENCY,147852,1260.00 
UK Trade and Investment Programme,UK Trade and Investment Programme,02/06/2011 ,Scheme Management Charges - Passport Business Development Credits,UK Trade & Investment - Regional Directorate,BENT FISH ANALYSIS LTD,147847,609.71 
UK Trade and Investment Programme,UK Trade and Investment Programme,02/06/2011 ,Scheme Management Charges - Passport Business Development Credits,UK Trade & Investment - Regional Directorate,DAIRYMAC LTD,147846,1500.00 
UK Trade and Investment Programme,UK Trade and Investment Programme,02/06/2011 ,Scheme Management Charges - Passport Business Development Credits,UK Trade & Investment - Regional Directorate,GRENADE (UK) LTD,147845,1500.00 
UK Trade and Investment Programme,UK Trade and Investment Programme,02/06/2011 ,Scheme Management Charges - Passport Business Development Credits,UK Trade & Investment - Regional Directorate,INAZONE LTD,147871,463.26 
UK Trade and Investment Programme,UK Trade and Investment Programme,02/06/2011 ,Scheme Management Charges - Passport Business Development Credits,UK Trade & Investment - Regional Directorate,IRIS CONNECT LTD,147872,955.79 
UK Trade and Investment Programme,UK Trade and Investment Programme,02/06/2011 ,Scheme Management Charges - Passport Business Development Credits,UK Trade & Investment - Regional Directorate,PROFESSIONAL DEVELOPMENT INTERNATIONAL,147870,706.22 
UK Trade and Investment Programme,UK Trade and Investment Programme,02/06/2011 ,Scheme Management Charges - Passport Business Development Credits,UK Trade & Investment - Regional Directorate,SHARPER DESIGN & MARKETING LTD,147844,1498.60 
UK Trade and Investment Programme,UK Trade and Investment Programme,02/06/2011 ,Scheme Management Charges - Passport Business Development Credits,UK Trade & Investment - Regional Directorate,SUSTAINABLE EVENTS LTD,147868,762.29 
UK Trade and Investment Programme,UK Trade and Investment Programme,02/06/2011 ,Other Transportation Hire - Sector Events - UK,UK Trade & Investment - Sectors Group,ADS GROUP LTD,147920,109.83 
UK Trade and Investment Programme,UK Trade and Investment Programme,02/06/2011 ,Other Transportation Hire - Sector Events - UK,UK Trade & Investment - Sectors Group,ADS GROUP LTD,147947,23.75 
UK Trade and Investment Programme,UK Trade and Investment Programme,02/06/2011 ,Authoring and Copywriting Costs - Trade Marketing Publicity,UK Trade & Investment - Marketing & Communications Group,KREATIVITY LTD,147984,2680.00 
UK Trade and Investment Programme,UK Trade and Investment Programme,02/06/2011 ,Sponsors Grants - Trade Show Access Programme,UK Trade & Investment - Sectors Group,THE MANUFACTURING TECHNOLOGIES ASSOCIATION,147982,720.00 
UK Trade and Investment Programme,UK Trade and Investment Programme,02/06/2011 ,Basic Grants - Trade Show Access Programme,UK Trade & Investment - Sectors Group,THE MANUFACTURING TECHNOLOGIES ASSOCIATION,147983,4200.00 
UK Trade and Investment Programme,UK Trade and Investment Programme,02/06/2011 ,Travel and Subsistence UK - UKTI Corporate Marketing,UK Trade & Investment - Marketing & Communications Group,"Personal Expense, Name Witheld",505179,96.01 
UK Trade and Investment Programme,UK Trade and Investment Programme,03/06/2011 ,Development Cost - Website (AUC) - Clearing Account - Balance Sheet,UK Trade & Investment - IT and Finance Group,METHODS CONSULTING LTD,148051,3172.50 
UK Trade and Investment Programme,UK Trade and Investment Programme,03/06/2011 ,Rental of Accomodation - ,UK Trade & Investment - Defence and Security Organisation,THE GROSVENOR HOTEL VICTORIA LTD,147108,246.00 
UK Trade and Investment Programme,UK Trade and Investment Programme,03/06/2011 ,Scheme Management Charges - Export Communications Review,UK Trade & Investment - Regional Directorate,THE BRITISH CHAMBERS OF COMMERCE,148046,350.00 
UK Trade and Investment Programme,UK Trade and Investment Programme,03/06/2011 ,Travel and Subsistence O'seas - Gateway to Global Growth,UK Trade & Investment - Regional Directorate,CHAPEL HOUSE TRAINING AND CONSULTANCY LTD,148045,860.00 
UK Trade and Investment Programme,UK Trade and Investment Programme,03/06/2011 ,Scheme Management Charges - International Trade Team Contracting,UK Trade & Investment - Regional Directorate,ONELONDON TRADE AND INVESTMENT LTD,148055,207750.74 
UK Trade and Investment Programme,UK Trade and Investment Programme,03/06/2011 ,Scheme Management Charges - International Trade Team Contracting,UK Trade & Investment - Regional Directorate,WEST MIDLANDS INTERNATIONAL TRADE LLP,148049,201417.00 
UK Trade and Investment Programme,UK Trade and Investment Programme,03/06/2011 ,Design Services - Inward Investment Publications,UK Trade & Investment - Marketing & Communications Group,APPETITE CONSULTANCY LTD,148044,22937.00 
UK Trade and Investment Programme,UK Trade and Investment Programme,03/06/2011 ,Event Management - Inward Investment Publicity,UK Trade & Investment - Marketing Group,CHINA BRITAIN BUSINESS COUNCIL,148029,32691.25 
UK Trade and Investment Programme,UK Trade and Investment Programme,03/06/2011 ,Event Management - Inward Investment Publicity,UK Trade & Investment - Marketing Group,CHINA BRITAIN BUSINESS COUNCIL,148030,6923.08 
UK Trade and Investment Programme,UK Trade and Investment Programme,03/06/2011 ,Other Transportation Hire - Inward Investment Publicity,UK Trade & Investment - Marketing Group,SIMONDS OF BOTESDALE LTD T/A SIMONDS COACH & TRAVEL,148050,1080.00 
UK Trade and Investment Programme,UK Trade and Investment Programme,03/06/2011 ,Travel and Subsistence O'seas - Market Visit Scheme,UK Trade & Investment - Regional Directorate,NORTH STAFFORDSHIRE CHAMBER OF COMMERCE AND INDUSTRY,148047,600.00 
UK Trade and Investment Programme,UK Trade and Investment Programme,03/06/2011 ,Design Services - Online,UK Trade & Investment - Marketing & Communications Group,KIND OF DIGITAL LTD,148054,500.00 
UK Trade and Investment Programme,UK Trade and Investment Programme,03/06/2011 ,Event Management - Outward missions,UK Trade & Investment - Sectors Group,INTERNATIONAL VISUAL COMMUNICATIONS ASSOCIATION [IVCA],148070,5000.00 
UK Trade and Investment Programme,UK Trade and Investment Programme,03/06/2011 ,Training - General - Passport Development & Events,UK Trade & Investment - Regional Directorate,GWE BUSINESS WEST LTD,148037,4999.53 
UK Trade and Investment Programme,UK Trade and Investment Programme,03/06/2011 ,Training - General - Passport Development & Events,UK Trade & Investment - Regional Directorate,WEST MIDLANDS INTERNATIONAL TRADE LLP,148048,8348.63 
UK Trade and Investment Programme,UK Trade and Investment Programme,03/06/2011 ,Event Management - Sector Events - Abroad,UK Trade & Investment - Sectors Group,COMMODORE CORPORATE TRAVEL,148067,254.00 
UK Trade and Investment Programme,UK Trade and Investment Programme,03/06/2011 ,Event Management - Sector Events - Abroad,UK Trade & Investment - Sectors Group,TRADE FAIR SUPPORT LTD,148039,8000.00 
UK Trade and Investment Programme,UK Trade and Investment Programme,03/06/2011 ,Travel and Subsistence UK - Sector Events - UK,UK Trade & Investment - Sectors Group,MUNROS TRAVEL GROUP,148064,1076.00 
UK Trade and Investment Programme,UK Trade and Investment Programme,03/06/2011 ,Basic Grants - SESA Solo Support Scheme,UK Trade & Investment - Sectors Group,WITT & SON UK LTD T/A WITT UK GROUP,148053,1000.00 
UK Trade and Investment Programme,UK Trade and Investment Programme,03/06/2011 ,Venue Hire - Trade Marketing Events,UK Trade & Investment - Regional Directorate,GWE BUSINESS WEST LTD,148037,539.29 
UK Trade and Investment Programme,UK Trade and Investment Programme,03/06/2011 ,Event Management - Trade Marketing Events,UK Trade & Investment - Regional Directorate,GWE BUSINESS WEST LTD,148037,1361.00 
UK Trade and Investment Programme,UK Trade and Investment Programme,03/06/2011 ,Professional Subscriptions - Trade Marketing Events,UK Trade & Investment - Regional Directorate,UNIVERSITY OF WARWICK,147915,5400.00 
UK Trade and Investment Programme,UK Trade and Investment Programme,03/06/2011 ,Photographic Services - Trade Marketing Publication,UK Trade & Investment - Marketing & Communications Group,APPETITE CONSULTANCY LTD,148041,4800.00 
UK Trade and Investment Programme,UK Trade and Investment Programme,03/06/2011 ,Design Services - Trade Marketing Publication,UK Trade & Investment - Marketing & Communications Group,APPETITE CONSULTANCY LTD,148042,100.00 
UK Trade and Investment Programme,UK Trade and Investment Programme,03/06/2011 ,Design Services - Trade Marketing Publication,UK Trade & Investment - Marketing & Communications Group,APPETITE CONSULTANCY LTD,148043,550.00 
UK Trade and Investment Programme,UK Trade and Investment Programme,03/06/2011 ,Video Production Services - Trade Marketing Publication,UK Trade & Investment - Marketing & Communications Group,S K & E S MAHER T/A SKM PRODUCTIONS,148052,3100.00 
UK Trade and Investment Programme,UK Trade and Investment Programme,03/06/2011 ,Basic Grants - Trade Show Access Programme,UK Trade & Investment - Sectors Group,BRITISH JEWELLERY AND GIFTWARE FEDERATION,148034,21000.00 
UK Trade and Investment Programme,UK Trade and Investment Programme,03/06/2011 ,Sponsors Grants - Trade Show Access Programme,UK Trade & Investment - Sectors Group,BRITISH JEWELLERY AND GIFTWARE FEDERATION,148035,3600.00 
UK Trade and Investment Programme,UK Trade and Investment Programme,03/06/2011 ,Sponsors Grants - Trade Show Access Programme,UK Trade & Investment - Sectors Group,BRITISH MARINE EQUIPMENT ASSOCIATION,148061,1680.00 
UK Trade and Investment Programme,UK Trade and Investment Programme,03/06/2011 ,Basic Grants - Trade Show Access Programme,UK Trade & Investment - Sectors Group,BRITISH MARINE EQUIPMENT ASSOCIATION,148062,9800.00 
UK Trade and Investment Programme,UK Trade and Investment Programme,03/06/2011 ,Sponsors Grants - Trade Show Access Programme,UK Trade & Investment - Sectors Group,UK FASHION AND TEXTILE ASSOCIATION LTD (UKFT),148038,3372.00 
UK Trade and Investment Programme,UK Trade and Investment Programme,03/06/2011 ,Sponsors Grants - Trade Show Access Programme,UK Trade & Investment - Sectors Group,UK FASHION AND TEXTILE ASSOCIATION LTD (UKFT),148038,21228.00 
UK Trade and Investment Programme,UK Trade and Investment Programme,03/06/2011 ,Sponsors Grants - Trade Show Access Programme,UK Trade & Investment - Sectors Group,UK FASHION AND TEXTILE ASSOCIATION LTD (UKFT),148038,36120.00 
UK Trade and Investment Programme,UK Trade and Investment Programme,06/06/2011 ,Travel and Subsistence O'seas - Attracting Global Entrepreneurs,UK Trade & Investment - Business Group,FOREIGN AND COMMONWEALTH OFFICE (FCO),147253,-5955.94 
UK Trade and Investment Programme,UK Trade and Investment Programme,06/06/2011 ,Printing Costs - Attracting Global Entrepreneurs,UK Trade & Investment - Business Group,LYRECO UK LTD,148089,33.59 
UK Trade and Investment Programme,UK Trade and Investment Programme,06/06/2011 ,IT Equipment - Clearing A/c - Balance Sheet,UK Trade & Investment - IT and Finance Group,INSIGHT DIRECT (UK) LTD,148069,531.60 
UK Trade and Investment Programme,UK Trade and Investment Programme,06/06/2011 ,Travel and Subsistence O'seas - ,UK Trade & Investment - Defence and Security Organisation,FOREIGN AND COMMONWEALTH OFFICE (FCO),147265,-9.09 
UK Trade and Investment Programme,UK Trade and Investment Programme,06/06/2011 ,Translation/Interpretation services - ,UK Trade & Investment - Defence and Security Organisation,FOREIGN AND COMMONWEALTH OFFICE (FCO),147266,5092.94 
UK Trade and Investment Programme,UK Trade and Investment Programme,06/06/2011 ,Other Accomodation costs - ,UK Trade & Investment - Strategy and Human Resources Group,FOREIGN AND COMMONWEALTH OFFICE (FCO),147294,903.86 
UK Trade and Investment Programme,UK Trade and Investment Programme,06/06/2011 ,Other Accomodation costs - ,UK Trade & Investment - Strategy and Human Resources Group,FOREIGN AND COMMONWEALTH OFFICE (FCO),147295,5.48 
UK Trade and Investment Programme,UK Trade and Investment Programme,06/06/2011 ,Other Accomodation costs - ,UK Trade & Investment - Strategy and Human Resources Group,FOREIGN AND COMMONWEALTH OFFICE (FCO),147295,2897.30 
UK Trade and Investment Programme,UK Trade and Investment Programme,06/06/2011 ,Other Accomodation costs - ,UK Trade & Investment - Strategy and Human Resources Group,FOREIGN AND COMMONWEALTH OFFICE (FCO),147295,2902.78 
UK Trade and Investment Programme,UK Trade and Investment Programme,06/06/2011 ,Other Accomodation costs - ,UK Trade & Investment - Strategy and Human Resources Group,FOREIGN AND COMMONWEALTH OFFICE (FCO),147295,2902.78 
UK Trade and Investment Programme,UK Trade and Investment Programme,06/06/2011 ,Other Accomodation costs - ,UK Trade & Investment - Strategy and Human Resources Group,FOREIGN AND COMMONWEALTH OFFICE (FCO),147310,204.28 
UK Trade and Investment Programme,UK Trade and Investment Programme,06/06/2011 ,Other Accomodation costs - ,UK Trade & Investment - Strategy and Human Resources Group,FOREIGN AND COMMONWEALTH OFFICE (FCO),147311,327.43 
UK Trade and Investment Programme,UK Trade and Investment Programme,06/06/2011 ,Other Accomodation costs - ,UK Trade & Investment - Strategy and Human Resources Group,FOREIGN AND COMMONWEALTH OFFICE (FCO),147312,210.65 
UK Trade and Investment Programme,UK Trade and Investment Programme,06/06/2011 ,Other Accomodation costs - ,UK Trade & Investment - Strategy and Human Resources Group,FOREIGN AND COMMONWEALTH OFFICE (FCO),147313,259.77 
UK Trade and Investment Programme,UK Trade and Investment Programme,06/06/2011 ,Other Accomodation costs - ,UK Trade & Investment - Strategy and Human Resources Group,FOREIGN AND COMMONWEALTH OFFICE (FCO),147314,1167.31 
UK Trade and Investment Programme,UK Trade and Investment Programme,06/06/2011 ,Event Management - Inward Investment Publicity,UK Trade & Investment - Marketing & Communications Group,FOREIGN AND COMMONWEALTH OFFICE (FCO),147254,1874.53 
UK Trade and Investment Programme,UK Trade and Investment Programme,06/06/2011 ,Event Management - Inward Investment Publicity,UK Trade & Investment - Marketing & Communications Group,FOREIGN AND COMMONWEALTH OFFICE (FCO),147256,628.83 
UK Trade and Investment Programme,UK Trade and Investment Programme,06/06/2011 ,Video Production Services - Inward Investment Publicity,UK Trade & Investment - Marketing & Communications Group,FOREIGN AND COMMONWEALTH OFFICE (FCO),147258,1089.82 
UK Trade and Investment Programme,UK Trade and Investment Programme,06/06/2011 ,Event Management - Inward Investment Publicity,UK Trade & Investment - Marketing & Communications Group,FOREIGN AND COMMONWEALTH OFFICE (FCO),147260,177.82 
UK Trade and Investment Programme,UK Trade and Investment Programme,06/06/2011 ,Event Management - Inward Investment Publicity,UK Trade & Investment - Marketing & Communications Group,FOREIGN AND COMMONWEALTH OFFICE (FCO),147261,1530.69 
UK Trade and Investment Programme,UK Trade and Investment Programme,06/06/2011 ,Event Management - Inward Investment Publicity,UK Trade & Investment - Marketing & Communications Group,FOREIGN AND COMMONWEALTH OFFICE (FCO),147262,212.67 
UK Trade and Investment Programme,UK Trade and Investment Programme,06/06/2011 ,Event Management - Inward Investment Publicity,UK Trade & Investment - Marketing & Communications Group,FOREIGN AND COMMONWEALTH OFFICE (FCO),147263,455.41 
UK Trade and Investment Programme,UK Trade and Investment Programme,06/06/2011 ,Event Management - Inward Investment Publicity,UK Trade & Investment - Marketing & Communications Group,FOREIGN AND COMMONWEALTH OFFICE (FCO),147282,1220.18 
UK Trade and Investment Programme,UK Trade and Investment Programme,06/06/2011 ,Event Management - Inward Investment Publicity,UK Trade & Investment - Marketing & Communications Group,FOREIGN AND COMMONWEALTH OFFICE (FCO),147283,878.19 
UK Trade and Investment Programme,UK Trade and Investment Programme,06/06/2011 ,Media and Press Services - Inward Investment Publicity,UK Trade & Investment - Marketing & Communications Group,FOREIGN AND COMMONWEALTH OFFICE (FCO),147285,13470.59 
UK Trade and Investment Programme,UK Trade and Investment Programme,06/06/2011 ,Media and Press Services - Inward Investment Publicity,UK Trade & Investment - Marketing & Communications Group,FOREIGN AND COMMONWEALTH OFFICE (FCO),147286,3695.28 
UK Trade and Investment Programme,UK Trade and Investment Programme,06/06/2011 ,Event Management - Inward Investment Publicity,UK Trade & Investment - Marketing & Communications Group,FOREIGN AND COMMONWEALTH OFFICE (FCO),147287,40.00 
UK Trade and Investment Programme,UK Trade and Investment Programme,06/06/2011 ,Event Management - Inward Investment Publicity,UK Trade & Investment - Marketing & Communications Group,FOREIGN AND COMMONWEALTH OFFICE (FCO),147287,4448.04 
UK Trade and Investment Programme,UK Trade and Investment Programme,06/06/2011 ,Media and Press Services - Inward Investment Publicity,UK Trade & Investment - Marketing & Communications Group,FOREIGN AND COMMONWEALTH OFFICE (FCO),147287,12478.46 
UK Trade and Investment Programme,UK Trade and Investment Programme,06/06/2011 ,Event Management - Inward Investment Publicity,UK Trade & Investment - Marketing & Communications Group,FOREIGN AND COMMONWEALTH OFFICE (FCO),147298,43.66 
UK Trade and Investment Programme,UK Trade and Investment Programme,06/06/2011 ,Event Management - Inward Investment Publicity,UK Trade & Investment - Marketing & Communications Group,FOREIGN AND COMMONWEALTH OFFICE (FCO),147299,7.28 
UK Trade and Investment Programme,UK Trade and Investment Programme,06/06/2011 ,Event Management - Inward Investment Publicity,UK Trade & Investment - Marketing & Communications Group,FOREIGN AND COMMONWEALTH OFFICE (FCO),147300,1363.12 
UK Trade and Investment Programme,UK Trade and Investment Programme,06/06/2011 ,Event Management - Inward Investment Publicity,UK Trade & Investment - Marketing & Communications Group,FOREIGN AND COMMONWEALTH OFFICE (FCO),147301,8178.70 
UK Trade and Investment Programme,UK Trade and Investment Programme,06/06/2011 ,Event Management - Inward Investment Publicity,UK Trade & Investment - Marketing & Communications Group,FOREIGN AND COMMONWEALTH OFFICE (FCO),147302,4396.41 
UK Trade and Investment Programme,UK Trade and Investment Programme,06/06/2011 ,Event Management - Inward Investment Publicity,UK Trade & Investment - Marketing & Communications Group,FOREIGN AND COMMONWEALTH OFFICE (FCO),147309,540.96 
UK Trade and Investment Programme,UK Trade and Investment Programme,06/06/2011 ,Event Management - Inward Investment Publicity,UK Trade & Investment - Marketing & Communications Group,FOREIGN AND COMMONWEALTH OFFICE (FCO),147315,1487.65 
UK Trade and Investment Programme,UK Trade and Investment Programme,06/06/2011 ,Printing Costs - Inward Investment Publicity,UK Trade & Investment - Marketing & Communications Group,FOREIGN AND COMMONWEALTH OFFICE (FCO),147316,156.50 
UK Trade and Investment Programme,UK Trade and Investment Programme,06/06/2011 ,Event Management - Inward Investment Publicity,UK Trade & Investment - Marketing & Communications Group,FOREIGN AND COMMONWEALTH OFFICE (FCO),147332,917.38 
UK Trade and Investment Programme,UK Trade and Investment Programme,06/06/2011 ,Event Management - Inward Investment Publicity,UK Trade & Investment - Marketing & Communications Group,FOREIGN AND COMMONWEALTH OFFICE (FCO),147340,-18.78 
UK Trade and Investment Programme,UK Trade and Investment Programme,06/06/2011 ,Event Management - Inward Investment Publicity,UK Trade & Investment - Marketing & Communications Group,FOREIGN AND COMMONWEALTH OFFICE (FCO),147342,378.75 
UK Trade and Investment Programme,UK Trade and Investment Programme,06/06/2011 ,Travel and Subsistence O'seas - Market Visit Scheme,UK Trade & Investment - Regional Directorate,A8 MEDIA LTD T/A EDUCATOURS,148084,595.00 
UK Trade and Investment Programme,UK Trade and Investment Programme,06/06/2011 ,Travel and Subsistence O'seas - Market Visit Scheme,UK Trade & Investment - Regional Directorate,A8 MEDIA LTD T/A EDUCATOURS,148086,530.00 
UK Trade and Investment Programme,UK Trade and Investment Programme,06/06/2011 ,Travel and Subsistence O'seas - Market Visit Scheme,UK Trade & Investment - Regional Directorate,RACHEL GOGERLY T/A RACHEL GOGERLY FINE ENAMELS,148090,200.00 
UK Trade and Investment Programme,UK Trade and Investment Programme,06/06/2011 ,Travel and Subsistence O'seas - Market Visit Scheme,UK Trade & Investment - Regional Directorate,SCIENTIFIC LABORATORY SUPPLIES LTD,148085,665.00 
UK Trade and Investment Programme,UK Trade and Investment Programme,06/06/2011 ,Travel and Subsistence O'seas - Market Visit Scheme,UK Trade & Investment - Regional Directorate,TEEMANS LTD,148083,530.00 
UK Trade and Investment Programme,UK Trade and Investment Programme,06/06/2011 ,Travel and Subsistence O'seas - Market Visit Scheme,UK Trade & Investment - Regional Directorate,YELLOW ADMIRAL LTD,148076,450.00 
UK Trade and Investment Programme,UK Trade and Investment Programme,06/06/2011 ,Event Management - Markets Fund,UK Trade & Investment - International Group,FOREIGN AND COMMONWEALTH OFFICE (FCO),147268,302.33 
UK Trade and Investment Programme,UK Trade and Investment Programme,06/06/2011 ,Event Management - Markets Fund,UK Trade & Investment - International Group,FOREIGN AND COMMONWEALTH OFFICE (FCO),147288,-21.21 
UK Trade and Investment Programme,UK Trade and Investment Programme,06/06/2011 ,Design Services - Online,UK Trade & Investment - Marketing & Communications Group,CAKE SOLUTIONS LTD,148093,1800.00 
UK Trade and Investment Programme,UK Trade and Investment Programme,06/06/2011 ,Event Management - Outward missions,UK Trade & Investment - Sectors Group,FOREIGN AND COMMONWEALTH OFFICE (FCO),147296,41.96 
UK Trade and Investment Programme,UK Trade and Investment Programme,06/06/2011 ,Venue Hire - Passport Development & Events,UK Trade & Investment - Regional Directorate,BARTON GRANGE HOTEL,148075,484.80 
UK Trade and Investment Programme,UK Trade and Investment Programme,06/06/2011 ,Venue Hire - Passport Development & Events,UK Trade & Investment - Regional Directorate,BARTON GRANGE HOTEL,148075,521.00 
UK Trade and Investment Programme,UK Trade and Investment Programme,06/06/2011 ,Venue Hire - Passport Development & Events,UK Trade & Investment - Regional Directorate,"IMAGO @ LOUGHBOROUGH LIMITED T/A IMAGO, THE LINK HOTEL & HOLYWELL PARK",148072,400.00 
UK Trade and Investment Programme,UK Trade and Investment Programme,06/06/2011 ,Training - General - Passport Development & Events,UK Trade & Investment - Regional Directorate,LEARNING IMPACT INTERNATIONAL LTD,148073,1449.01 
UK Trade and Investment Programme,UK Trade and Investment Programme,06/06/2011 ,Event Management - Post Challenge Fund,UK Trade & Investment - Sectors Group,FOREIGN AND COMMONWEALTH OFFICE (FCO),147278,27.67 
UK Trade and Investment Programme,UK Trade and Investment Programme,06/06/2011 ,Event Management - Post Challenge Fund,UK Trade & Investment - Sectors Group,FOREIGN AND COMMONWEALTH OFFICE (FCO),147307,42.98 
UK Trade and Investment Programme,UK Trade and Investment Programme,06/06/2011 ,Event Management - Post Challenge Fund,UK Trade & Investment - Sectors Group,FOREIGN AND COMMONWEALTH OFFICE (FCO),147308,16.53 
UK Trade and Investment Programme,UK Trade and Investment Programme,06/06/2011 ,Event Management - Sector Events - Abroad,UK Trade & Investment - Sectors Group4,FOREIGN AND COMMONWEALTH OFFICE (FCO),147270,9311.93 
UK Trade and Investment Programme,UK Trade and Investment Programme,06/06/2011 ,Other Transportation Hire - Sector Events - Abroad,UK Trade & Investment - Sectors Group,FOREIGN AND COMMONWEALTH OFFICE (FCO),147276,320.09 
UK Trade and Investment Programme,UK Trade and Investment Programme,06/06/2011 ,Event Management - Sector Events - Abroad,UK Trade & Investment - Sectors Group,FOREIGN AND COMMONWEALTH OFFICE (FCO),147277,286.25 
UK Trade and Investment Programme,UK Trade and Investment Programme,06/06/2011 ,Translation/Interpretation services - Sector Events - Abroad,UK Trade & Investment - Sectors Group,FOREIGN AND COMMONWEALTH OFFICE (FCO),147279,374.42 
UK Trade and Investment Programme,UK Trade and Investment Programme,06/06/2011 ,Event Management - Sector Events - Abroad,UK Trade & Investment - Sectors Group,FOREIGN AND COMMONWEALTH OFFICE (FCO),147297,8591.57 
UK Trade and Investment Programme,UK Trade and Investment Programme,06/06/2011 ,Event Management - Sector Events - Abroad,UK Trade & Investment - Sectors Group,FOREIGN AND COMMONWEALTH OFFICE (FCO),147305,127.10 
UK Trade and Investment Programme,UK Trade and Investment Programme,06/06/2011 ,Event Management - Sector Events - Abroad,UK Trade & Investment - Sectors Group4,FOREIGN AND COMMONWEALTH OFFICE (FCO),147306,387.20 
UK Trade and Investment Programme,UK Trade and Investment Programme,06/06/2011 ,Speakers fees - Sector Events - Abroad,UK Trade & Investment - Sectors Group,FOREIGN AND COMMONWEALTH OFFICE (FCO),147331,190.23 
UK Trade and Investment Programme,UK Trade and Investment Programme,06/06/2011 ,Event Management - Sector Events - Abroad,UK Trade & Investment - Sectors Group,FOREIGN AND COMMONWEALTH OFFICE (FCO),147338,2050.21 
UK Trade and Investment Programme,UK Trade and Investment Programme,06/06/2011 ,Event Management - Sector Events - Abroad,UK Trade & Investment - Sectors Group,FOREIGN AND COMMONWEALTH OFFICE (FCO),147344,714.84 
UK Trade and Investment Programme,UK Trade and Investment Programme,06/06/2011 ,Event Management - Sector Events - Abroad,UK Trade & Investment - Sectors Group,FOREIGN AND COMMONWEALTH OFFICE (FCO),147345,-81.70 
UK Trade and Investment Programme,UK Trade and Investment Programme,06/06/2011 ,Design Services - Sector Events - UK,UK Trade & Investment - Sectors Group,ACUMEN DESIGN CONSULTANCY LTD,148063,385.00 
UK Trade and Investment Programme,UK Trade and Investment Programme,06/06/2011 ,Event Management - Sector Events - UK,UK Trade & Investment - Sectors Group4,FOREIGN AND COMMONWEALTH OFFICE (FCO),147267,245.58 
UK Trade and Investment Programme,UK Trade and Investment Programme,06/06/2011 ,Event Management - Sector Events - UK,UK Trade & Investment - Sectors Group4,FOREIGN AND COMMONWEALTH OFFICE (FCO),147269,204.02 
UK Trade and Investment Programme,UK Trade and Investment Programme,06/06/2011 ,Event Management - Sector Events - UK,UK Trade & Investment - Sectors Group4,FOREIGN AND COMMONWEALTH OFFICE (FCO),147270,633.29 
UK Trade and Investment Programme,UK Trade and Investment Programme,06/06/2011 ,Travel and Subsistence O'seas - Sector Events - UK,UK Trade & Investment - Sectors Group,FOREIGN AND COMMONWEALTH OFFICE (FCO),147280,4.16 
UK Trade and Investment Programme,UK Trade and Investment Programme,06/06/2011 ,Travel and Subsistence O'seas - Sector Events - UK,UK Trade & Investment - Sectors Group,FOREIGN AND COMMONWEALTH OFFICE (FCO),147280,500.00 
UK Trade and Investment Programme,UK Trade and Investment Programme,06/06/2011 ,Event Management - Sector Events - UK,UK Trade & Investment - Sectors Group,FOREIGN AND COMMONWEALTH OFFICE (FCO),147284,204.45 
UK Trade and Investment Programme,UK Trade and Investment Programme,06/06/2011 ,Travel and Subsistence O'seas - Security Events,UK Trade & Investment - Defence and Security Organisation,FOREIGN AND COMMONWEALTH OFFICE (FCO),147317,167.56 
UK Trade and Investment Programme,UK Trade and Investment Programme,06/06/2011 ,Event Management - Trade Development Support,UK Trade & Investment - International Group,FOREIGN AND COMMONWEALTH OFFICE (FCO),147304,352.09 
UK Trade and Investment Programme,UK Trade and Investment Programme,06/06/2011 ,Travel and Subsistence O'seas - Trade Development Support,UK Trade & Investment - International Group,FOREIGN AND COMMONWEALTH OFFICE (FCO),147337,0.70 
UK Trade and Investment Programme,UK Trade and Investment Programme,06/06/2011 ,Travel and Subsistence O'seas - Trade Development Support,UK Trade & Investment - International Group,FOREIGN AND COMMONWEALTH OFFICE (FCO),147337,31200.00 
UK Trade and Investment Programme,UK Trade and Investment Programme,06/06/2011 ,Design Services - Trade Marketing Events,UK Trade & Investment - Marketing & Communications Group,CLEARVIEW IMAGING SERVICES LTD,147823,130.00 
UK Trade and Investment Programme,UK Trade and Investment Programme,06/06/2011 ,Venue Hire - Trade Marketing Events,UK Trade & Investment - Regional Directorate,LINDLEY CATERING LTD,147892,200.00 
UK Trade and Investment Programme,UK Trade and Investment Programme,06/06/2011 ,Photographic Services - Trade Marketing Publication,UK Trade & Investment - Marketing & Communications Group,FOREIGN AND COMMONWEALTH OFFICE (FCO),147333,2063.74 
UK Trade and Investment Programme,UK Trade and Investment Programme,06/06/2011 ,Photographic Services - Trade Marketing Publication,UK Trade & Investment - Marketing & Communications Group,FOREIGN AND COMMONWEALTH OFFICE (FCO),147334,2973.69 
UK Trade and Investment Programme,UK Trade and Investment Programme,06/06/2011 ,Basic Grants - Trade Show Access Programme,UK Trade & Investment - Sectors Group,AMUSEMENT & LEISURE EQUIPMENT SUPPLIERS (ALES UK),148087,2000.00 
UK Trade and Investment Programme,UK Trade and Investment Programme,06/06/2011 ,Sponsors Grants - Trade Show Access Programme,UK Trade & Investment - Sectors Group,AMUSEMENT & LEISURE EQUIPMENT SUPPLIERS (ALES UK),148088,400.00 
UK Trade and Investment Programme,UK Trade and Investment Programme,06/06/2011 ,Sponsors Grants - Trade Show Access Programme,UK Trade & Investment - Sectors Group,CHEMICAL INDUSTRIES ASSOCIATION LTD,148081,480.00 
UK Trade and Investment Programme,UK Trade and Investment Programme,06/06/2011 ,Basic Grants - Trade Show Access Programme,UK Trade & Investment - Sectors Group,CHEMICAL INDUSTRIES ASSOCIATION LTD,148082,2000.00 
UK Trade and Investment Programme,UK Trade and Investment Programme,06/06/2011 ,Basic Grants - Trade Show Access Programme,UK Trade & Investment - Sectors Group,FILM EXPORT UK LTD,148079,13000.00 
UK Trade and Investment Programme,UK Trade and Investment Programme,06/06/2011 ,Sponsors Grants - Trade Show Access Programme,UK Trade & Investment - Sectors Group,FILM EXPORT UK LTD,148080,3120.00 
UK Trade and Investment Programme,UK Trade and Investment Programme,06/06/2011 ,Basic Grants - Trade Show Access Programme,UK Trade & Investment - Sectors Group,GARDENEX,148077,12000.00 
UK Trade and Investment Programme,UK Trade and Investment Programme,06/06/2011 ,Sponsors Grants - Trade Show Access Programme,UK Trade & Investment - Sectors Group,GARDENEX,148078,2880.00 
UK Trade and Investment Programme,UK Trade and Investment Programme,06/06/2011 ,Event Management - UKTI Corporate Marketing,UK Trade & Investment - Marketing & Communications Group,FOREIGN AND COMMONWEALTH OFFICE (FCO),147303,122.29 
UK Trade and Investment Programme,UK Trade and Investment Programme,06/06/2011 ,Event Management - UKTI Corporate Marketing,UK Trade & Investment - Marketing & Communications Group,FOREIGN AND COMMONWEALTH OFFICE (FCO),147303,693.40 
UK Trade and Investment Programme,UK Trade and Investment Programme,06/06/2011 ,Event Management - UKTI Corporate Marketing,UK Trade & Investment - Marketing & Communications Group,FOREIGN AND COMMONWEALTH OFFICE (FCO),147335,3485.72 
UK Trade and Investment Programme,UK Trade and Investment Programme,07/06/2011 ,Software - Clearing A/c - Balance Sheet,UK Trade & Investment - IT and Finance Group,INSIGHT DIRECT (UK) LTD,148108,3287.33 
UK Trade and Investment Programme,UK Trade and Investment Programme,07/06/2011 ,IT Equipment - Clearing A/c - Balance Sheet,UK Trade & Investment - IT and Finance Group,INSIGHT DIRECT (UK) LTD,148109,3390.46 
UK Trade and Investment Programme,UK Trade and Investment Programme,07/06/2011 ,Development Cost - IT Intangible (AUC) - Clearing Account - Balance Sheet,UK Trade & Investment - IT and Finance Group,INTERQUEST GROUP (UK) LTD (IGUKL) T/A SAND RESOURCES,148138,11134.00 
UK Trade and Investment Programme,UK Trade and Investment Programme,07/06/2011 ,Development Cost - Website (AUC) - Clearing Account - Balance Sheet,UK Trade & Investment - IT and Finance Group,MICHAEL PAGE INTERNATIONAL RECRUITMENT LTD,148097,3134.10 
UK Trade and Investment Programme,UK Trade and Investment Programme,07/06/2011 ,Development Cost - Website (AUC) - Clearing Account - Balance Sheet,UK Trade & Investment - IT and Finance Group,MICHAEL PAGE INTERNATIONAL RECRUITMENT LTD,148098,3134.10 
UK Trade and Investment Programme,UK Trade and Investment Programme,07/06/2011 ,Development Cost - Website (AUC) - Clearing Account - Balance Sheet,UK Trade & Investment - IT and Finance Group,MICHAEL PAGE INTERNATIONAL RECRUITMENT LTD,148099,3134.10 
UK Trade and Investment Programme,UK Trade and Investment Programme,07/06/2011 ,Sponsors Grants - CBBC,UK Trade & Investment - International Group,CHINA BRITAIN BUSINESS COUNCIL,148137,77199.00 
UK Trade and Investment Programme,UK Trade and Investment Programme,07/06/2011 ,Sponsors Grants - CBBC,UK Trade & Investment - International Group,CHINA BRITAIN BUSINESS COUNCIL,148137,80867.00 
UK Trade and Investment Programme,UK Trade and Investment Programme,07/06/2011 ,Other Accomodation costs - ,UK Trade & Investment - Strategy and Human Resources Group,FOREIGN AND COMMONWEALTH OFFICE (FCO),148149,51.96 
UK Trade and Investment Programme,UK Trade and Investment Programme,07/06/2011 ,Scheme Management Charges - Export Communications Review,UK Trade & Investment - Regional Directorate,THE BRITISH CHAMBERS OF COMMERCE,148135,8333.30 
UK Trade and Investment Programme,UK Trade and Investment Programme,07/06/2011 ,Scheme Management Charges - Export Market Research Scheme,UK Trade & Investment - Regional Directorate,THE BRITISH CHAMBERS OF COMMERCE,148136,33333.00 
UK Trade and Investment Programme,UK Trade and Investment Programme,07/06/2011 ,Scheme Management Charges - Fiscal Compass Programme,UK Trade & Investment - Sectors Group,PA CONSULTING GROUP LTD,148121,163461.48 
UK Trade and Investment Programme,UK Trade and Investment Programme,07/06/2011 ,Travel and Subsistence O'seas - Gateway to Global Growth,UK Trade & Investment - Regional Directorate,BROMLEY TECHNOLOGIES LTD,148139,995.00 
UK Trade and Investment Programme,UK Trade and Investment Programme,07/06/2011 ,Travel and Subsistence O'seas - Gateway to Global Growth,UK Trade & Investment - Regional Directorate,SHE KNOWS LTD,148100,130.00 
UK Trade and Investment Programme,UK Trade and Investment Programme,07/06/2011 ,Travel and Subsistence O'seas - Gateway to Global Growth,UK Trade & Investment - Regional Directorate,SHE KNOWS LTD,148100,1030.00 
UK Trade and Investment Programme,UK Trade and Investment Programme,07/06/2011 ,Scheme Management Charges - International Trade Team Contracting,UK Trade & Investment - Regional Directorate,THE REGIONAL FOOD GROUP FOR YORKSHIRE AND HUMBER LTD,146320,4320.01 
UK Trade and Investment Programme,UK Trade and Investment Programme,07/06/2011 ,Entertainment UK - Inward Investment Events,UK Trade & Investment - Business Group,"Personal Expense, Name Witheld",505180,72.79 
UK Trade and Investment Programme,UK Trade and Investment Programme,07/06/2011 ,Entertainment UK - Inward Investment Events,UK Trade & Investment - Business Group,"Personal Expense, Name Witheld",505180,187.15 
UK Trade and Investment Programme,UK Trade and Investment Programme,07/06/2011 ,Media and Press Services - Inward Investment Publicity,UK Trade & Investment - Marketing & Communications Group,FARRAR MEDIA INTERNATIONAL LTD,148107,10833.33 
UK Trade and Investment Programme,UK Trade and Investment Programme,07/06/2011 ,Media and Press Services - Inward Investment Publicity,UK Trade & Investment - Marketing & Communications Group,PRECISE MEDIA MONITORING LTD,148110,1525.27 
UK Trade and Investment Programme,UK Trade and Investment Programme,07/06/2011 ,Travel and Subsistence O'seas - Market Visit Scheme,UK Trade & Investment - Regional Directorate,FROGTRADE LTD,148118,1030.00 
UK Trade and Investment Programme,UK Trade and Investment Programme,07/06/2011 ,Travel and Subsistence O'seas - Market Visit Scheme,UK Trade & Investment - Regional Directorate,LEARN.ORG.UK LTD,148101,595.00 
UK Trade and Investment Programme,UK Trade and Investment Programme,07/06/2011 ,IT Managed Service Contracts - Online,UK Trade & Investment - Marketing & Communications Group,CAKE SOLUTIONS LTD,148091,1152.00 
UK Trade and Investment Programme,UK Trade and Investment Programme,07/06/2011 ,IT Managed Service Contracts - Online,UK Trade & Investment - Marketing & Communications Group,CAKE SOLUTIONS LTD,148092,150.00 
UK Trade and Investment Programme,UK Trade and Investment Programme,07/06/2011 ,Design Services - Online,UK Trade & Investment - Marketing & Communications Group,CAKE SOLUTIONS LTD,148094,1400.02 
UK Trade and Investment Programme,UK Trade and Investment Programme,07/06/2011 ,Bank Charges - Commercial Banks - Overseas Market Introduction Service,UK Trade & Investment - IT and Finance Group,DTI OTSS COSTS A\C,148068,27.10 
UK Trade and Investment Programme,UK Trade and Investment Programme,07/06/2011 ,Scheme Management Charges - Passport Business Development Credits,UK Trade & Investment - Regional Directorate,AGP CONSULTING LTD,147966,1216.36 
UK Trade and Investment Programme,UK Trade and Investment Programme,07/06/2011 ,Scheme Management Charges - Passport Business Development Credits,UK Trade & Investment - Regional Directorate,AT AND ASSOCIATES LTD,147962,1391.55 
UK Trade and Investment Programme,UK Trade and Investment Programme,07/06/2011 ,Scheme Management Charges - Passport Business Development Credits,UK Trade & Investment - Regional Directorate,BOZAS INTERNATIONAL LTD,148016,839.32 
UK Trade and Investment Programme,UK Trade and Investment Programme,07/06/2011 ,Scheme Management Charges - Passport Business Development Credits,UK Trade & Investment - Regional Directorate,CLUES COMMUNICATIONS LTD,147866,487.41 
UK Trade and Investment Programme,UK Trade and Investment Programme,07/06/2011 ,Scheme Management Charges - Passport Business Development Credits,UK Trade & Investment - Regional Directorate,DAVIES ODELL LTD,148009,1007.73 
UK Trade and Investment Programme,UK Trade and Investment Programme,07/06/2011 ,Scheme Management Charges - Passport Business Development Credits,UK Trade & Investment - Regional Directorate,DEVNAA LLP,148010,250.00 
UK Trade and Investment Programme,UK Trade and Investment Programme,07/06/2011 ,Scheme Management Charges - Passport Business Development Credits,UK Trade & Investment - Regional Directorate,DEVNAA LLP,148010,500.00 
UK Trade and Investment Programme,UK Trade and Investment Programme,07/06/2011 ,Scheme Management Charges - Passport Business Development Credits,UK Trade & Investment - Regional Directorate,ELEGANT ADDRESS LTD,147867,1486.50 
UK Trade and Investment Programme,UK Trade and Investment Programme,07/06/2011 ,Scheme Management Charges - Passport Business Development Credits,UK Trade & Investment - Regional Directorate,FLUDES S H LTD T/A RAMBLERS COUNTRY CLOTHING,147964,1500.00 
UK Trade and Investment Programme,UK Trade and Investment Programme,07/06/2011 ,Scheme Management Charges - Passport Business Development Credits,UK Trade & Investment - Regional Directorate,GAVIROL CONSULT LTD,147672,1097.26 
UK Trade and Investment Programme,UK Trade and Investment Programme,07/06/2011 ,Scheme Management Charges - Passport Business Development Credits,UK Trade & Investment - Regional Directorate,GRESHAM OFFICE FURNITURE LTD,147967,1500.00 
UK Trade and Investment Programme,UK Trade and Investment Programme,07/06/2011 ,Scheme Management Charges - Passport Business Development Credits,UK Trade & Investment - Regional Directorate,HYDRATRON LTD,147968,1500.00 
UK Trade and Investment Programme,UK Trade and Investment Programme,07/06/2011 ,Scheme Management Charges - Passport Business Development Credits,UK Trade & Investment - Regional Directorate,JOHN GOUGH MEDIA,148056,334.36 
UK Trade and Investment Programme,UK Trade and Investment Programme,07/06/2011 ,Scheme Management Charges - Passport Business Development Credits,UK Trade & Investment - Regional Directorate,LARCH ROSE LTD,147371,1500.00 
UK Trade and Investment Programme,UK Trade and Investment Programme,07/06/2011 ,Scheme Management Charges - Passport Business Development Credits,UK Trade & Investment - Regional Directorate,MINTY HIGHWAY LTD,147865,352.97 
UK Trade and Investment Programme,UK Trade and Investment Programme,07/06/2011 ,Scheme Management Charges - Passport Business Development Credits,UK Trade & Investment - Regional Directorate,MODCELL LTD,148059,1000.00 
UK Trade and Investment Programme,UK Trade and Investment Programme,07/06/2011 ,Scheme Management Charges - Passport Business Development Credits,UK Trade & Investment - Regional Directorate,ONSWITCH LTD,147869,445.45 
UK Trade and Investment Programme,UK Trade and Investment Programme,07/06/2011 ,Scheme Management Charges - Passport Business Development Credits,UK Trade & Investment - Regional Directorate,ONSWITCH LTD,147869,467.64 
UK Trade and Investment Programme,UK Trade and Investment Programme,07/06/2011 ,Scheme Management Charges - Passport Business Development Credits,UK Trade & Investment - Regional Directorate,ONSWITCH LTD,147869,586.91 
UK Trade and Investment Programme,UK Trade and Investment Programme,07/06/2011 ,Scheme Management Charges - Passport Business Development Credits,UK Trade & Investment - Regional Directorate,PITCHMARK LTD,148014,1500.00 
UK Trade and Investment Programme,UK Trade and Investment Programme,07/06/2011 ,Scheme Management Charges - Passport Business Development Credits,UK Trade & Investment - Regional Directorate,POLLEN TRUE TASTE,147809,263.07 
UK Trade and Investment Programme,UK Trade and Investment Programme,07/06/2011 ,Scheme Management Charges - Passport Business Development Credits,UK Trade & Investment - Regional Directorate,ROB MCALISTER LTD,147963,1500.00 
UK Trade and Investment Programme,UK Trade and Investment Programme,07/06/2011 ,Scheme Management Charges - Passport Business Development Credits,UK Trade & Investment - Regional Directorate,STUDIO LIDDELL LTD,148058,1500.00 
UK Trade and Investment Programme,UK Trade and Investment Programme,07/06/2011 ,Scheme Management Charges - Passport Business Development Credits,UK Trade & Investment - Regional Directorate,THE MICROCURRENT SITE LTD,147908,113.51 
UK Trade and Investment Programme,UK Trade and Investment Programme,07/06/2011 ,Scheme Management Charges - Passport Business Development Credits,UK Trade & Investment - Regional Directorate,VALUEMYSTUFFNOW LTD,147965,143.40 
UK Trade and Investment Programme,UK Trade and Investment Programme,07/06/2011 ,Scheme Management Charges - Passport Business Development Credits,UK Trade & Investment - Regional Directorate,WORLD ACADEMIES LTD,148057,306.13 
UK Trade and Investment Programme,UK Trade and Investment Programme,07/06/2011 ,Scheme Management Charges - Passport Business Development Credits,UK Trade & Investment - Regional Directorate,YOSPACE TECHNOLOGIES LTD,148060,1500.00 
UK Trade and Investment Programme,UK Trade and Investment Programme,07/06/2011 ,Scheme Management Charges - Passport Business Development Credits,UK Trade & Investment - Regional Directorate,ZZZZOMNITRACK LTD,147961,1500.00 
UK Trade and Investment Programme,UK Trade and Investment Programme,07/06/2011 ,Training - General - Passport Development & Events,UK Trade & Investment - Regional Directorate,LEARNING IMPACT INTERNATIONAL LTD,148116,2498.49 
UK Trade and Investment Programme,UK Trade and Investment Programme,07/06/2011 ,Training - General - Passport Development & Events,UK Trade & Investment - Regional Directorate,LEARNING IMPACT INTERNATIONAL LTD,148117,2512.26 
UK Trade and Investment Programme,UK Trade and Investment Programme,07/06/2011 ,Research and Development Costs - Performance Measurement,UK Trade & Investment - Economics and Evaluation,OMB RESEARCH LTD,148119,32227.30 
UK Trade and Investment Programme,UK Trade and Investment Programme,07/06/2011 ,Research and Development Costs - Performance Measurement,UK Trade & Investment - Economics and Evaluation,OMB RESEARCH LTD,148120,900.00 
UK Trade and Investment Programme,UK Trade and Investment Programme,07/06/2011 ,Event Management - Sector Events - UK,UK Trade & Investment - Sectors Group,BUSINESS TO BUSINESS EXHIBITIONS LTD,148114,6715.00 
UK Trade and Investment Programme,UK Trade and Investment Programme,07/06/2011 ,Travel and Subsistence UK - Sector Events - UK,UK Trade & Investment - Sectors Group,RAINBOW CARS LTD T/A RAINBOW CITY TAXIS,148115,215.52 
UK Trade and Investment Programme,UK Trade and Investment Programme,07/06/2011 ,Travel and Subsistence UK - Security Events,UK Trade & Investment - Defence and Security Organisation,"Personal Expense, Name Witheld",505181,10.00 
UK Trade and Investment Programme,UK Trade and Investment Programme,07/06/2011 ,Travel and Subsistence UK - Security Events,UK Trade & Investment - Defence and Security Organisation,"Personal Expense, Name Witheld",505181,52.00 
UK Trade and Investment Programme,UK Trade and Investment Programme,07/06/2011 ,Printed Publications - Trade Development Support,UK Trade & Investment - International Group,BILL HENDERSON LVO MBE,147911,853.00 
UK Trade and Investment Programme,UK Trade and Investment Programme,07/06/2011 ,Event Management - Trade Marketing Events,UK Trade & Investment - Regional Directorate,NEWSCO INSIDER LTD,148103,2000.00 
UK Trade and Investment Programme,UK Trade and Investment Programme,07/06/2011 ,Travel and Subsistence O'seas - Trade Marketing Events,UK Trade & Investment - Regional Directorate,THE REGIONAL FOOD GROUP FOR YORKSHIRE AND HUMBER LTD,146320,0.02 
UK Trade and Investment Programme,UK Trade and Investment Programme,07/06/2011 ,Travel and Subsistence O'seas - Trade Marketing Events,UK Trade & Investment - Regional Directorate,THE REGIONAL FOOD GROUP FOR YORKSHIRE AND HUMBER LTD,146320,7551.84 
UK Trade and Investment Programme,UK Trade and Investment Programme,07/06/2011 ,Photographic Services - Trade Marketing Publication,UK Trade & Investment - Marketing & Communications Group,CRUZ IT LTD T/A CIT DIGITAL,148122,4340.00 
UK Trade and Investment Programme,UK Trade and Investment Programme,07/06/2011 ,Design Services - Trade Marketing Publication,UK Trade & Investment - Marketing & Communications Group,WHITEHOUSE MAINWARING DESIGN CONSULTANTS LTD,148111,125.00 
UK Trade and Investment Programme,UK Trade and Investment Programme,07/06/2011 ,Outsourced Technical Support - Trade Marketing Publicity,UK Trade & Investment - Marketing & Communications Group,CREATIVEWORKS PARTNERSHIP LLP,148113,15750.00 
UK Trade and Investment Programme,UK Trade and Investment Programme,07/06/2011 ,Design Services - Trade Marketing Publicity,UK Trade & Investment - Marketing & Communications Group,WHITEHOUSE MAINWARING DESIGN CONSULTANTS LTD,148112,595.00 
UK Trade and Investment Programme,UK Trade and Investment Programme,07/06/2011 ,Basic Grants - Trade Show Access Programme,UK Trade & Investment - Sectors Group,MEDILINK (YORKSHIRE AND HUMBER) LTD,148124,14000.00 
UK Trade and Investment Programme,UK Trade and Investment Programme,07/06/2011 ,Sponsors Grants - Trade Show Access Programme,UK Trade & Investment - Sectors Group,PS8 LTD,148126,3120.00 
UK Trade and Investment Programme,UK Trade and Investment Programme,07/06/2011 ,Sponsors Grants - Trade Show Access Programme,UK Trade & Investment - Sectors Group,PS8 LTD,148127,13000.00 
UK Trade and Investment Programme,UK Trade and Investment Programme,08/06/2011 ,Development Cost - Website (AUC) - Clearing Account - Balance Sheet,UK Trade & Investment - IT and Finance Group,DECARE SYSTEMS IRELAND LTD,148140,9360.00 
UK Trade and Investment Programme,UK Trade and Investment Programme,08/06/2011 ,Travel and Subsistence O'seas - Gateway to Global Growth,UK Trade & Investment - Regional Directorate,JOHN FOSTER (1819) LTD,148164,130.00 
UK Trade and Investment Programme,UK Trade and Investment Programme,08/06/2011 ,Travel and Subsistence O'seas - Gateway to Global Growth,UK Trade & Investment - Regional Directorate,JOHN FOSTER (1819) LTD,148164,1030.00 
UK Trade and Investment Programme,UK Trade and Investment Programme,08/06/2011 ,Scheme Management Charges - International Trade Team Contracting,UK Trade & Investment - Regional Directorate,Y & H IDB LTD T/A BUSINESS LINK YORKSHIRE,148181,117096.00 
UK Trade and Investment Programme,UK Trade and Investment Programme,08/06/2011 ,Design Services - Inward Investment Publicity,UK Trade & Investment - Marketing Group,ACUMEN DESIGN CONSULTANCY LTD,148130,175.00 
UK Trade and Investment Programme,UK Trade and Investment Programme,08/06/2011 ,Design Services - Inward Investment Publicity,UK Trade & Investment - Marketing Group,ACUMEN DESIGN CONSULTANCY LTD,148131,350.00 
UK Trade and Investment Programme,UK Trade and Investment Programme,08/06/2011 ,Design Services - Inward Investment Publicity,UK Trade & Investment - Marketing & Communications Group,ACUMEN DESIGN CONSULTANCY LTD,148132,315.00 
UK Trade and Investment Programme,UK Trade and Investment Programme,08/06/2011 ,Design Services - Inward Investment Publicity,UK Trade & Investment - Marketing & Communications Group,ACUMEN DESIGN CONSULTANCY LTD,148133,150.00 
UK Trade and Investment Programme,UK Trade and Investment Programme,08/06/2011 ,Media and Press Services - Inward Investment Publicity,UK Trade & Investment - Marketing Group,BURSON-MARSTELLER,148066,2772.32 
UK Trade and Investment Programme,UK Trade and Investment Programme,08/06/2011 ,Media and Press Services - Inward Investment Publicity,UK Trade & Investment - Marketing & Communications Group,COI COMMUNICATIONS,148142,50.00 
UK Trade and Investment Programme,UK Trade and Investment Programme,08/06/2011 ,Event Management - Inward Investment Publicity,UK Trade & Investment - Marketing & Communications Group,FOREIGN AND COMMONWEALTH OFFICE (FCO),147353,327.32 
UK Trade and Investment Programme,UK Trade and Investment Programme,08/06/2011 ,Travel and Subsistence O'seas - Market Visit Scheme,UK Trade & Investment - Regional Directorate,EXPONENTIAL TRAINING & ASSESSMENT LTD,148144,650.00 
UK Trade and Investment Programme,UK Trade and Investment Programme,08/06/2011 ,Travel and Subsistence O'seas - Market Visit Scheme,UK Trade & Investment - Regional Directorate,NORTH STAFFORDSHIRE CHAMBER OF COMMERCE AND INDUSTRY,148183,200.00 
UK Trade and Investment Programme,UK Trade and Investment Programme,08/06/2011 ,Travel and Subsistence O'seas - Market Visit Scheme,UK Trade & Investment - Regional Directorate,POLYMER TAILORING LTD,148182,750.00 
UK Trade and Investment Programme,UK Trade and Investment Programme,08/06/2011 ,Travel and Subsistence O'seas - Market Visit Scheme,UK Trade & Investment - Regional Directorate,SPIROLL PRECAST SERVICES LTD,148184,400.00 
UK Trade and Investment Programme,UK Trade and Investment Programme,08/06/2011 ,Travel and Subsistence O'seas - Market Visit Scheme,UK Trade & Investment - Regional Directorate,SPRITE MANUFACTURING LTD,148178,200.00 
UK Trade and Investment Programme,UK Trade and Investment Programme,08/06/2011 ,Travel and Subsistence O'seas - Market Visit Scheme,UK Trade & Investment - Regional Directorate,UNIVERSAL FLEXIBLE PACKAGING LTD,148145,500.00 
UK Trade and Investment Programme,UK Trade and Investment Programme,08/06/2011 ,IT Managed Service Contracts - Online,UK Trade & Investment - Marketing & Communications Group,CAKE SOLUTIONS LTD,148166,1152.00 
UK Trade and Investment Programme,UK Trade and Investment Programme,08/06/2011 ,IT Managed Service Contracts - Online,UK Trade & Investment - Marketing & Communications Group,CAKE SOLUTIONS LTD,148168,150.00 
UK Trade and Investment Programme,UK Trade and Investment Programme,08/06/2011 ,Scheme Management Charges - Overseas Market Introduction Service,UK Trade & Investment - IT and Finance Group,VENN GROUP LTD,148165,2570.28 
UK Trade and Investment Programme,UK Trade and Investment Programme,08/06/2011 ,Scheme Management Charges - Overseas Market Introduction Service,UK Trade & Investment - IT and Finance Group,VENN GROUP LTD,148167,2570.28 
UK Trade and Investment Programme,UK Trade and Investment Programme,08/06/2011 ,Scheme Management Charges - Overseas Market Introduction Service,UK Trade & Investment - IT and Finance Group,VENN GROUP LTD,148169,2056.22 
UK Trade and Investment Programme,UK Trade and Investment Programme,08/06/2011 ,Scheme Management Charges - Overseas Market Introduction Service,UK Trade & Investment - IT and Finance Group,VENN GROUP LTD,148171,1542.17 
UK Trade and Investment Programme,UK Trade and Investment Programme,08/06/2011 ,Scheme Management Charges - Overseas Market Introduction Service,UK Trade & Investment - IT and Finance Group,VENN GROUP LTD,148172,2570.28 
UK Trade and Investment Programme,UK Trade and Investment Programme,08/06/2011 ,Scheme Management Charges - Overseas Market Introduction Service,UK Trade & Investment - IT and Finance Group,VENN GROUP LTD,148173,2570.28 
UK Trade and Investment Programme,UK Trade and Investment Programme,08/06/2011 ,Scheme Management Charges - Overseas Market Introduction Service,UK Trade & Investment - IT and Finance Group,VENN GROUP LTD,148174,2570.28 
UK Trade and Investment Programme,UK Trade and Investment Programme,08/06/2011 ,Scheme Management Charges - Overseas Market Introduction Service,UK Trade & Investment - IT and Finance Group,VENN GROUP LTD,148175,2570.28 
UK Trade and Investment Programme,UK Trade and Investment Programme,08/06/2011 ,Venue Hire - Passport Development & Events,UK Trade & Investment - Regional Directorate,THISTLE HOTEL HAYDOCK,148152,883.33 
UK Trade and Investment Programme,UK Trade and Investment Programme,08/06/2011 ,Venue Hire - Passport Development & Events,UK Trade & Investment - Regional Directorate,THISTLE HOTEL HAYDOCK,148153,-39.00 
UK Trade and Investment Programme,UK Trade and Investment Programme,08/06/2011 ,Scheme Management Charges - Passport Development & Events,UK Trade & Investment - Regional Directorate,Y & H IDB LTD T/A BUSINESS LINK YORKSHIRE,148181,3682.00 
UK Trade and Investment Programme,UK Trade and Investment Programme,08/06/2011 ,Event Management - Post Challenge Fund,UK Trade & Investment - Sectors Group,FOREIGN AND COMMONWEALTH OFFICE (FCO),147354,103.24 
UK Trade and Investment Programme,UK Trade and Investment Programme,08/06/2011 ,Event Management - Post Challenge Fund,UK Trade & Investment - Sectors Group,FOREIGN AND COMMONWEALTH OFFICE (FCO),147355,228.13 
UK Trade and Investment Programme,UK Trade and Investment Programme,08/06/2011 ,Event Management - Post Challenge Fund,UK Trade & Investment - Sectors Group,FOREIGN AND COMMONWEALTH OFFICE (FCO),147356,133.85 
UK Trade and Investment Programme,UK Trade and Investment Programme,08/06/2011 ,Event Management - Post Challenge Fund,UK Trade & Investment - Sectors Group,FOREIGN AND COMMONWEALTH OFFICE (FCO),147357,409.57 
UK Trade and Investment Programme,UK Trade and Investment Programme,08/06/2011 ,Event Management - Sector Events - Abroad,UK Trade & Investment - Sectors Group,FOREIGN AND COMMONWEALTH OFFICE (FCO),147358,919.29 
UK Trade and Investment Programme,UK Trade and Investment Programme,08/06/2011 ,Event Management - Sector Events - Abroad,UK Trade & Investment - Sectors Group,FOREIGN AND COMMONWEALTH OFFICE (FCO),147359,650.73 
UK Trade and Investment Programme,UK Trade and Investment Programme,08/06/2011 ,Event Management - Sector Events - Abroad,UK Trade & Investment - Sectors Group,RAINMAKER GLOBAL BUSINESS DEVELOPMENT LTD,148177,15750.00 
UK Trade and Investment Programme,UK Trade and Investment Programme,08/06/2011 ,Design Services - Trade Marketing Events,UK Trade & Investment - Marketing & Communications Group,ACUMEN DESIGN CONSULTANCY LTD,148134,475.00 
UK Trade and Investment Programme,UK Trade and Investment Programme,08/06/2011 ,Promotional Materials - Trade Marketing Events,UK Trade & Investment - Marketing & Communications Group,AWARE PROMOTIONAL MERCHANDISE LTD,148161,3108.00 
UK Trade and Investment Programme,UK Trade and Investment Programme,08/06/2011 ,Promotional Materials - Trade Marketing Events,UK Trade & Investment - Marketing & Communications Group,AWARE PROMOTIONAL MERCHANDISE LTD,148162,72.00 
UK Trade and Investment Programme,UK Trade and Investment Programme,08/06/2011 ,Promotional Materials - Trade Marketing Events,UK Trade & Investment - Marketing & Communications Group,AWARE PROMOTIONAL MERCHANDISE LTD,148162,2286.00 
UK Trade and Investment Programme,UK Trade and Investment Programme,08/06/2011 ,Event Management - Trade Marketing Events,UK Trade & Investment - Regional Directorate,EAST OF ENGLAND IDB LTD,148179,2400.00 
UK Trade and Investment Programme,UK Trade and Investment Programme,08/06/2011 ,Event Management - Trade Marketing Events,UK Trade & Investment - Regional Directorate,EAST OF ENGLAND IDB LTD,148180,3263.87 
UK Trade and Investment Programme,UK Trade and Investment Programme,08/06/2011 ,Stand Construction Costs - Trade Marketing Events,UK Trade & Investment - Marketing & Communications Group,ELITEXPO CARGO SYSTEMS INC,148032,5115.59 
UK Trade and Investment Programme,UK Trade and Investment Programme,08/06/2011 ,Travel and Subsistence O'seas - Trade Marketing Events,UK Trade & Investment - Defence and Security Organisation,THE CUMBERLAND GUOMAN LTD,147840,1596.00 
UK Trade and Investment Programme,UK Trade and Investment Programme,08/06/2011 ,Online Services charges - Trade Marketing Events,UK Trade & Investment - Marketing & Communications Group,TOUCHSCREEN SERVICES LTD,148163,833.25 
UK Trade and Investment Programme,UK Trade and Investment Programme,08/06/2011 ,Scheme Management Charges - Trade Marketing Events,UK Trade & Investment - Regional Directorate,Y & H IDB LTD T/A BUSINESS LINK YORKSHIRE,148181,600.00 
UK Trade and Investment Programme,UK Trade and Investment Programme,08/06/2011 ,Design Services - Trade Marketing Publication,UK Trade & Investment - Marketing & Communications Group,ACUMEN DESIGN CONSULTANCY LTD,148129,2660.00 
UK Trade and Investment Programme,UK Trade and Investment Programme,08/06/2011 ,Video Production Services - UKTI Corporate Marketing,UK Trade & Investment - Marketing & Communications Group,ANDREW GLEED,148151,310.00 
UK Trade and Investment Programme,UK Trade and Investment Programme,09/06/2011 ,Authoring and Copywriting Costs - Attracting Global Entrepreneurs,UK Trade & Investment - Business Group,LORRAINE SHAH,148202,645.00 
UK Trade and Investment Programme,UK Trade and Investment Programme,09/06/2011 ,Development Cost - Website (AUC) - Clearing Account - Balance Sheet,UK Trade & Investment - IT and Finance Group,PARASOL LTD,148176,4752.00 
UK Trade and Investment Programme,UK Trade and Investment Programme,09/06/2011 ,Scheme Management Charges - Export Communications Review,UK Trade & Investment - Regional Directorate,THE BRITISH CHAMBERS OF COMMERCE,148218,350.00 
UK Trade and Investment Programme,UK Trade and Investment Programme,09/06/2011 ,Scheme Management Charges - Export Communications Review,UK Trade & Investment - Regional Directorate,THE BRITISH CHAMBERS OF COMMERCE,148221,350.00 
UK Trade and Investment Programme,UK Trade and Investment Programme,09/06/2011 ,Scheme Management Charges - Export Communications Review,UK Trade & Investment - Regional Directorate,THE BRITISH CHAMBERS OF COMMERCE,148224,350.00 
UK Trade and Investment Programme,UK Trade and Investment Programme,09/06/2011 ,Scheme Management Charges - Export Communications Review,UK Trade & Investment - Regional Directorate,THE BRITISH CHAMBERS OF COMMERCE,148229,250.00 
UK Trade and Investment Programme,UK Trade and Investment Programme,09/06/2011 ,Scheme Management Charges - GLOBAL NETWORKS,UK Trade & Investment - Business Group,STOPGAP LTD,148148,1040.48 
UK Trade and Investment Programme,UK Trade and Investment Programme,09/06/2011 ,Scheme Management Charges - GLOBAL NETWORKS,UK Trade & Investment - Business Group,STOPGAP LTD,148148,3651.72 
UK Trade and Investment Programme,UK Trade and Investment Programme,09/06/2011 ,Scheme Management Charges - International Trade Team Contracting,UK Trade & Investment - Regional Directorate,ADVANTAGE WEST MIDLANDS,148188,11995.12 
UK Trade and Investment Programme,UK Trade and Investment Programme,09/06/2011 ,Scheme Management Charges - International Trade Team Contracting,UK Trade & Investment - Regional Directorate,COVENTRY UNIVERSITY ENTERPRISES LTD,148189,5416.00 
UK Trade and Investment Programme,UK Trade and Investment Programme,09/06/2011 ,Design Services - Inward Investment Publicity,UK Trade & Investment - Marketing & Communications Group,CLEARVIEW IMAGING SERVICES LTD,148220,121.24 
UK Trade and Investment Programme,UK Trade and Investment Programme,09/06/2011 ,Event Management - Inward Investment Publicity,UK Trade & Investment - Marketing & Communications Group,THE ECONOMIST INTELLIGENCE UNIT LTD,148228,30000.00 
UK Trade and Investment Programme,UK Trade and Investment Programme,09/06/2011 ,Travel and Subsistence O'seas - Market Visit Scheme,UK Trade & Investment - Regional Directorate,INTEGRATED SYSTEM TECHNOLOGIES LTD,148191,450.00 
UK Trade and Investment Programme,UK Trade and Investment Programme,09/06/2011 ,Travel and Subsistence O'seas - Market Visit Scheme,UK Trade & Investment - Regional Directorate,JAI ENGINEERS UK LTD,148210,40.00 
UK Trade and Investment Programme,UK Trade and Investment Programme,09/06/2011 ,Travel and Subsistence O'seas - Market Visit Scheme,UK Trade & Investment - Regional Directorate,JAI ENGINEERS UK LTD,148210,200.00 
UK Trade and Investment Programme,UK Trade and Investment Programme,09/06/2011 ,Travel and Subsistence O'seas - Market Visit Scheme,UK Trade & Investment - Regional Directorate,MELLOW COLOUR LTD,148190,750.00 
UK Trade and Investment Programme,UK Trade and Investment Programme,09/06/2011 ,Travel and Subsistence O'seas - Market Visit Scheme,UK Trade & Investment - Regional Directorate,NEW ERA AQUACULTURE LTD,148215,665.00 
UK Trade and Investment Programme,UK Trade and Investment Programme,09/06/2011 ,Travel and Subsistence O'seas - Market Visit Scheme,UK Trade & Investment - Regional Directorate,TRAINING & LEADERSHIP COACHING LTD T/A LEARNING GOODIES,148213,260.00 
UK Trade and Investment Programme,UK Trade and Investment Programme,09/06/2011 ,Conference and seminar fees - NINJ Sector Events Abroad,UK Trade & Investment - International Group,STANDARD CHARTERED BANK,146023,2630.70 
UK Trade and Investment Programme,UK Trade and Investment Programme,09/06/2011 ,Basic Grants - NINJ Sector Events Abroad,UK Trade & Investment - International Group,STANDARD CHARTERED BANK,147463,7350.00 
UK Trade and Investment Programme,UK Trade and Investment Programme,09/06/2011 ,Bank Charges - Commercial Banks - Overseas Market Introduction Service,UK Trade & Investment - IT and Finance Group,DTI OTSS COSTS A\C,148146,8.78 
UK Trade and Investment Programme,UK Trade and Investment Programme,09/06/2011 ,Bank Charges - Commercial Banks - Overseas Market Introduction Service,UK Trade & Investment - IT and Finance Group,DTI OTSS COSTS A\C,148146,5324.39 
UK Trade and Investment Programme,UK Trade and Investment Programme,09/06/2011 ,Bank Charges - Commercial Banks - Overseas Market Introduction Service,UK Trade & Investment - IT and Finance Group,DTI OTSS COSTS A\C,148147,-20.34 
UK Trade and Investment Programme,UK Trade and Investment Programme,09/06/2011 ,Bank Charges - Commercial Banks - Overseas Market Introduction Service,UK Trade & Investment - IT and Finance Group,DTI OTSS COSTS A\C,148147,16.95 
UK Trade and Investment Programme,UK Trade and Investment Programme,09/06/2011 ,Bank Charges - Commercial Banks - Overseas Market Introduction Service,UK Trade & Investment - IT and Finance Group,DTI OTSS COSTS A\C,148147,20.34 
UK Trade and Investment Programme,UK Trade and Investment Programme,09/06/2011 ,Bank Charges - Commercial Banks - Overseas Market Introduction Service,UK Trade & Investment - IT and Finance Group,DTI OTSS COSTS A\C,148193,383.06 
UK Trade and Investment Programme,UK Trade and Investment Programme,09/06/2011 ,Bank Charges - Commercial Banks - Overseas Market Introduction Service,UK Trade & Investment - IT and Finance Group,DTI OTSS COSTS A\C,148194,850.17 
UK Trade and Investment Programme,UK Trade and Investment Programme,09/06/2011 ,Scheme Management Charges - Passport Business Development Credits,UK Trade & Investment - Regional Directorate,A+ENGLISH LTD,148102,305.00 
UK Trade and Investment Programme,UK Trade and Investment Programme,09/06/2011 ,Scheme Management Charges - Passport Business Development Credits,UK Trade & Investment - Regional Directorate,AMEY COMMUNITY LTD,148192,2961.12 
UK Trade and Investment Programme,UK Trade and Investment Programme,09/06/2011 ,Scheme Management Charges - Passport Business Development Credits,UK Trade & Investment - Regional Directorate,HARRY WEST (PREES) LTD,148104,544.20 
UK Trade and Investment Programme,UK Trade and Investment Programme,09/06/2011 ,Scheme Management Charges - Passport Business Development Credits,UK Trade & Investment - Regional Directorate,IKINEMA LTD,148105,1500.00 
UK Trade and Investment Programme,UK Trade and Investment Programme,09/06/2011 ,Scheme Management Charges - Passport Business Development Credits,UK Trade & Investment - Regional Directorate,PARKBURN PRECISION HANDLING SYSTEMS LTD,147907,909.12 
UK Trade and Investment Programme,UK Trade and Investment Programme,09/06/2011 ,Scheme Management Charges - Passport Business Development Credits,UK Trade & Investment - Regional Directorate,QUEEN ALEXANDRA COLLEGE,148155,1244.00 
UK Trade and Investment Programme,UK Trade and Investment Programme,09/06/2011 ,Scheme Management Charges - Passport Business Development Credits,UK Trade & Investment - Regional Directorate,VOICE BRAND DESIGN LTD,148106,85.99 
UK Trade and Investment Programme,UK Trade and Investment Programme,09/06/2011 ,Scheme Management Charges - Passport Development & Events,UK Trade & Investment - Regional Directorate,RLN EAST LTD,148208,9080.00 
UK Trade and Investment Programme,UK Trade and Investment Programme,09/06/2011 ,Travel and Subsistence O'seas - Passport Development & Events,UK Trade & Investment - Regional Directorate,STUDIO LIDDELL LTD,148209,500.00 
UK Trade and Investment Programme,UK Trade and Investment Programme,09/06/2011 ,Event Management - Sector Events - Abroad,UK Trade & Investment - Sectors Group,BIRMINGHAM CHAMBER OF COMMERCE AND INDUSTRY,148236,7200.00 
UK Trade and Investment Programme,UK Trade and Investment Programme,09/06/2011 ,Event Management - Sector Events - Abroad,UK Trade & Investment - Sectors Group,BUSINESS TO BUSINESS EXHIBITIONS LTD,148235,10145.00 
UK Trade and Investment Programme,UK Trade and Investment Programme,09/06/2011 ,Stand Space/rental costs - Sector Events - Abroad,UK Trade & Investment - Sectors Group,SOCCEREX LTD,148222,25000.00 
UK Trade and Investment Programme,UK Trade and Investment Programme,09/06/2011 ,Event Management - Sector Events - UK,UK Trade & Investment - Sectors Group,THE KENSINGTON HOTEL,148198,6964.17 
UK Trade and Investment Programme,UK Trade and Investment Programme,09/06/2011 ,Scheme Management Charges - Trade Development External Advisers,UK Trade & Investment - Sectors Group,PERA INTERNATIONAL LTD,148195,6768.77 
UK Trade and Investment Programme,UK Trade and Investment Programme,09/06/2011 ,Scheme Management Charges - Trade Development External Advisers,UK Trade & Investment - Sectors Group,PERA INTERNATIONAL LTD,148196,6768.77 
UK Trade and Investment Programme,UK Trade and Investment Programme,09/06/2011 ,Event Management - Trade Development Support,UK Trade & Investment - International Group,GOVERNMENT CAR AND DESPATCH AGENCY,148239,373.25 
UK Trade and Investment Programme,UK Trade and Investment Programme,09/06/2011 ,Stand Construction Costs - Trade Marketing Events,UK Trade & Investment - Marketing & Communications Group,CLEARVIEW IMAGING SERVICES LTD,148216,2000.00 
UK Trade and Investment Programme,UK Trade and Investment Programme,09/06/2011 ,Online Services charges - Trade Marketing Events,UK Trade & Investment - Marketing & Communications Group,CLEARVIEW IMAGING SERVICES LTD,148217,6650.00 
UK Trade and Investment Programme,UK Trade and Investment Programme,09/06/2011 ,Stand Construction Costs - Trade Marketing Events,UK Trade & Investment - Marketing & Communications Group,CLEARVIEW IMAGING SERVICES LTD,148223,5930.00 
UK Trade and Investment Programme,UK Trade and Investment Programme,09/06/2011 ,Stand Construction Costs - Trade Marketing Events,UK Trade & Investment - Marketing & Communications Group,CLEARVIEW IMAGING SERVICES LTD,148225,8420.00 
UK Trade and Investment Programme,UK Trade and Investment Programme,09/06/2011 ,Stand Construction Costs - Trade Marketing Events,UK Trade & Investment - Marketing & Communications Group,CLEARVIEW IMAGING SERVICES LTD,148227,905.00 
UK Trade and Investment Programme,UK Trade and Investment Programme,09/06/2011 ,Stand Construction Costs - Trade Marketing Events,UK Trade & Investment - Marketing & Communications Group,CLEARVIEW IMAGING SERVICES LTD,148230,1220.00 
UK Trade and Investment Programme,UK Trade and Investment Programme,09/06/2011 ,Stand Construction Costs - Trade Marketing Events,UK Trade & Investment - Marketing & Communications Group,CLEARVIEW IMAGING SERVICES LTD,148231,390.00 
UK Trade and Investment Programme,UK Trade and Investment Programme,09/06/2011 ,Stand Construction Costs - Trade Marketing Events,UK Trade & Investment - Marketing & Communications Group,CLEARVIEW IMAGING SERVICES LTD,148232,2750.00 
UK Trade and Investment Programme,UK Trade and Investment Programme,09/06/2011 ,Stand Space/rental costs - Trade Marketing Events,UK Trade & Investment - Regional Directorate,"LEEDS,YORK & NORTH YORKSHIRE CHAMBER OF COMMERCE AND INDUSTRY LTD",148226,495.00 
UK Trade and Investment Programme,UK Trade and Investment Programme,09/06/2011 ,Basic Grants - Trade Show Access Programme,UK Trade & Investment - Sectors Group,BIRMINGHAM CHAMBER OF COMMERCE AND INDUSTRY,148204,1400.00 
UK Trade and Investment Programme,UK Trade and Investment Programme,09/06/2011 ,Sponsors Grants - Trade Show Access Programme,UK Trade & Investment - Sectors Group,BIRMINGHAM CHAMBER OF COMMERCE AND INDUSTRY,148205,240.00 
UK Trade and Investment Programme,UK Trade and Investment Programme,09/06/2011 ,Sponsors Grants - Trade Show Access Programme,UK Trade & Investment - Sectors Group,BRITISH EUROPEAN DESIGN GROUP,148200,720.00 
UK Trade and Investment Programme,UK Trade and Investment Programme,09/06/2011 ,Sponsors Grants - Trade Show Access Programme,UK Trade & Investment - Sectors Group,BRITISH EUROPEAN DESIGN GROUP,148200,6480.00 
UK Trade and Investment Programme,UK Trade and Investment Programme,09/06/2011 ,Basic Grants - Trade Show Access Programme,UK Trade & Investment - Sectors Group,BRITISH EUROPEAN DESIGN GROUP,148201,3000.00 
UK Trade and Investment Programme,UK Trade and Investment Programme,09/06/2011 ,Basic Grants - Trade Show Access Programme,UK Trade & Investment - Sectors Group,BRITISH EUROPEAN DESIGN GROUP,148201,27000.00 
UK Trade and Investment Programme,UK Trade and Investment Programme,09/06/2011 ,Sponsors Grants - Trade Show Access Programme,UK Trade & Investment - Sectors Group,GARDENEX,148186,2640.00 
UK Trade and Investment Programme,UK Trade and Investment Programme,09/06/2011 ,Basic Grants - Trade Show Access Programme,UK Trade & Investment - Sectors Group,GARDENEX,148187,15400.00 
UK Trade and Investment Programme,UK Trade and Investment Programme,09/06/2011 ,Other IT Services - UKTI Web Services - Hosting and Support,UK Trade & Investment - IT and Finance Group,FUJITSU SERVICES LTD,147886,17289.00 
UK Trade and Investment Programme,UK Trade and Investment Programme,10/06/2011 ,Catering - Business Advisory Groups,UK Trade & Investment - International Group,SPOILT FOR CHOICE LTD,148240,273.80 
UK Trade and Investment Programme,UK Trade and Investment Programme,10/06/2011 ,Car Hire and Leasing - ,UK Trade & Investment - Defence and Security Organisation,CITYFLEET NETWORKS LTD,148250,45.73 
UK Trade and Investment Programme,UK Trade and Investment Programme,10/06/2011 ,Car Hire and Leasing - ,UK Trade & Investment - Defence and Security Organisation,CITYFLEET NETWORKS LTD,148250,172.40 
UK Trade and Investment Programme,UK Trade and Investment Programme,10/06/2011 ,Travel and Subsistence O'seas - Gateway to Global Growth,UK Trade & Investment - Regional Directorate,BOND BRYAN ARCHITECTS LTD,148263,995.00 
UK Trade and Investment Programme,UK Trade and Investment Programme,10/06/2011 ,Scheme Management Charges - International Trade Team Contracting,UK Trade & Investment - Regional Directorate,BIRMINGHAM CHAMBER OF COMMERCE AND INDUSTRY,148255,32467.86 
UK Trade and Investment Programme,UK Trade and Investment Programme,10/06/2011 ,Scheme Management Charges - International Trade Team Contracting,UK Trade & Investment - Regional Directorate,ONELONDON TRADE AND INVESTMENT LTD,148244,237091.00 
UK Trade and Investment Programme,UK Trade and Investment Programme,10/06/2011 ,Authoring and Copywriting Costs - Inward Investment Publications,UK Trade & Investment - Marketing & Communications Group,LORRAINE SHAH,148258,405.00 
UK Trade and Investment Programme,UK Trade and Investment Programme,10/06/2011 ,Venue Hire - Inward Missions,UK Trade & Investment - Sectors Group,ST PANCRAS RENAISSANCE LONDON HOTEL,148143,950.00 
UK Trade and Investment Programme,UK Trade and Investment Programme,10/06/2011 ,Event Management - NINJ Sector Events,UK Trade & Investment - Sectors Group,BRANDON HILL COMMUNICATIONS LTD,146030,-16097.01 
UK Trade and Investment Programme,UK Trade and Investment Programme,10/06/2011 ,Event Management - Outward missions,UK Trade & Investment - Sectors Group,MOTORSPORT INDUSTRY ASSOCIATION [MIA],148265,8000.00 
UK Trade and Investment Programme,UK Trade and Investment Programme,10/06/2011 ,Fees and Charges - Overseas Market Introduction Service,UK Trade & Investment - IT and Finance Group,ANGOSS SOFTWARE LTD,148237,425.00 
UK Trade and Investment Programme,UK Trade and Investment Programme,10/06/2011 ,Research and Development Costs - Performance Measurement,UK Trade & Investment - Economics and Evaluation,OMB RESEARCH LTD,148251,1958.80 
UK Trade and Investment Programme,UK Trade and Investment Programme,10/06/2011 ,Travel and Subsistence O'seas - Regional Interchange Scheme,UK Trade & Investment - Regional Directorate,GREATER LONDON ENTERPRISE LTD,148254,220.74 
UK Trade and Investment Programme,UK Trade and Investment Programme,10/06/2011 ,Event Management - Sector Events - Abroad,UK Trade & Investment - Sectors Group,RAINMAKER GLOBAL BUSINESS DEVELOPMENT LTD,148264,600.00 
UK Trade and Investment Programme,UK Trade and Investment Programme,10/06/2011 ,Event Management - Sector Events - UK,UK Trade & Investment - Sectors Group,BRANDON HILL COMMUNICATIONS LTD,148262,1171.47 
UK Trade and Investment Programme,UK Trade and Investment Programme,10/06/2011 ,Stand Construction Costs - Trade Marketing Events,UK Trade & Investment - Defence and Security Organisation,CLEARVIEW EVENTS LTD,148260,14400.00 
UK Trade and Investment Programme,UK Trade and Investment Programme,10/06/2011 ,Stand Construction Costs - Trade Marketing Events,UK Trade & Investment - Defence and Security Organisation,EDGE EXHIBITION DESIGN LTD,148257,16800.00 
UK Trade and Investment Programme,UK Trade and Investment Programme,10/06/2011 ,Travel and Subsistence O'seas - Trade Marketing Events,UK Trade & Investment - Regional Directorate,MOREHANDS LTD,148253,1000.00 
UK Trade and Investment Programme,UK Trade and Investment Programme,10/06/2011 ,Travel and Subsistence O'seas - Trade Marketing Events,UK Trade & Investment - Regional Directorate,SIGARIA LTD (PROCUREMENT LEADERS),148252,1000.00 
UK Trade and Investment Programme,UK Trade and Investment Programme,10/06/2011 ,Professional Subscriptions - Trade Marketing Publication,UK Trade & Investment - Marketing & Communications Group,CREST COMMUNICATIONS (PR) LTD,148245,240.00 
UK Trade and Investment Programme,UK Trade and Investment Programme,10/06/2011 ,Design Services - Trade Marketing Publicity,UK Trade & Investment - Marketing & Communications Group,BELLMAN MEDIA LTD,148219,1469.00 
UK Trade and Investment Programme,UK Trade and Investment Programme,10/06/2011 ,Sponsors Grants - Trade Show Access Programme,UK Trade & Investment - Sectors Group,MEDILINK (YORKSHIRE AND HUMBER) LTD,148125,2400.00 
UK Trade and Investment Programme,UK Trade and Investment Programme,10/06/2011 ,Sponsors Grants - Trade Show Access Programme,UK Trade & Investment - Sectors Group,MEDILINK (YORKSHIRE AND HUMBER) LTD,148125,24000.00 
UK Trade and Investment Programme,UK Trade and Investment Programme,13/06/2011 ,Event Management - Asia Task Force,UK Trade & Investment - International Group,INNOVISION EVENTS LTD,148274,200.00 
UK Trade and Investment Programme,UK Trade and Investment Programme,13/06/2011 ,Development Cost - Website (AUC) - Clearing Account - Balance Sheet,UK Trade & Investment - IT and Finance Group,CAKE SOLUTIONS LTD,148302,10080.00 
UK Trade and Investment Programme,UK Trade and Investment Programme,13/06/2011 ,Development Cost - Website (AUC) - Clearing Account - Balance Sheet,UK Trade & Investment - IT and Finance Group,CAKE SOLUTIONS LTD,148304,7344.00 
UK Trade and Investment Programme,UK Trade and Investment Programme,13/06/2011 ,Travel and Subsistence O'seas - Gateway to Global Growth,UK Trade & Investment - Regional Directorate,CODA STUDIOS LTD,148271,995.00 
UK Trade and Investment Programme,UK Trade and Investment Programme,13/06/2011 ,Travel and Subsistence O'seas - Gateway to Global Growth,UK Trade & Investment - Regional Directorate,JOAN JONES SOFTWARE SERVICES LTD,148294,995.00 
UK Trade and Investment Programme,UK Trade and Investment Programme,13/06/2011 ,Travel and Subsistence UK - International Trade Team Contracting,UK Trade & Investment - Regional Directorate,RUSSELL BUSINESS SERVICES LTD,148307,438.91 
UK Trade and Investment Programme,UK Trade and Investment Programme,13/06/2011 ,Scheme Management Charges - International Trade Team Contracting,UK Trade & Investment - Regional Directorate,RUSSELL BUSINESS SERVICES LTD,148307,6384.00 
UK Trade and Investment Programme,UK Trade and Investment Programme,13/06/2011 ,Scheme Management Charges - International Trade Team Contracting,UK Trade & Investment - Regional Directorate,SOUTH EAST TRADE & INVESTMENT LTD,148306,251660.46 
UK Trade and Investment Programme,UK Trade and Investment Programme,13/06/2011 ,Printing Costs - Inward Investment Publications,UK Trade & Investment - Marketing & Communications Group,RED STONE DESIGN LTD,148272,540.00 
UK Trade and Investment Programme,UK Trade and Investment Programme,13/06/2011 ,Travel and Subsistence O'seas - Market Visit Scheme,UK Trade & Investment - Regional Directorate,ELEPHANT STONE INVESTMENTS LTD,148243,665.00 
UK Trade and Investment Programme,UK Trade and Investment Programme,13/06/2011 ,Travel and Subsistence O'seas - Market Visit Scheme,UK Trade & Investment - Regional Directorate,IAN DICKSON TRAVEL SERVICE,148303,25.00 
UK Trade and Investment Programme,UK Trade and Investment Programme,13/06/2011 ,Travel and Subsistence O'seas - Market Visit Scheme,UK Trade & Investment - Regional Directorate,IAN DICKSON TRAVEL SERVICE,148303,2905.00 
UK Trade and Investment Programme,UK Trade and Investment Programme,13/06/2011 ,Travel and Subsistence O'seas - Market Visit Scheme,UK Trade & Investment - Regional Directorate,M.R. MACHINE KNIVES LTD,148310,260.00 
UK Trade and Investment Programme,UK Trade and Investment Programme,13/06/2011 ,Travel and Subsistence O'seas - Market Visit Scheme,UK Trade & Investment - Regional Directorate,MILLERBROWN LTD,148273,260.00 
UK Trade and Investment Programme,UK Trade and Investment Programme,13/06/2011 ,Travel and Subsistence O'seas - Market Visit Scheme,UK Trade & Investment - Regional Directorate,NORCOM TECHNOLOGY LTD,148308,200.00 
UK Trade and Investment Programme,UK Trade and Investment Programme,13/06/2011 ,Travel and Subsistence O'seas - Market Visit Scheme,UK Trade & Investment - Regional Directorate,PRINCIPLE HEALTHCARE INTERNATIONAL LTD,147807,130.00 
UK Trade and Investment Programme,UK Trade and Investment Programme,13/06/2011 ,Travel and Subsistence O'seas - Market Visit Scheme,UK Trade & Investment - Regional Directorate,PRINCIPLE HEALTHCARE INTERNATIONAL LTD,147807,795.00 
UK Trade and Investment Programme,UK Trade and Investment Programme,13/06/2011 ,Travel and Subsistence O'seas - Market Visit Scheme,UK Trade & Investment - Regional Directorate,SCIENTIFIC LABORATORY SUPPLIES LTD,148312,70.00 
UK Trade and Investment Programme,UK Trade and Investment Programme,13/06/2011 ,Travel and Subsistence O'seas - Market Visit Scheme,UK Trade & Investment - Regional Directorate,SCIENTIFIC LABORATORY SUPPLIES LTD,148312,90.00 
UK Trade and Investment Programme,UK Trade and Investment Programme,13/06/2011 ,Travel and Subsistence O'seas - Market Visit Scheme,UK Trade & Investment - Regional Directorate,SCIENTIFIC LABORATORY SUPPLIES LTD,148312,665.00 
UK Trade and Investment Programme,UK Trade and Investment Programme,13/06/2011 ,Venue Hire - Passport Development & Events,UK Trade & Investment - Regional Directorate,"IMAGO @ LOUGHBOROUGH LIMITED T/A IMAGO, THE LINK HOTEL & HOLYWELL PARK",148292,521.67 
UK Trade and Investment Programme,UK Trade and Investment Programme,13/06/2011 ,Promotional Materials - Sector Events - Abroad,UK Trade & Investment - Sectors Group,AWARE PROMOTIONAL MERCHANDISE LTD,148300,15.00 
UK Trade and Investment Programme,UK Trade and Investment Programme,13/06/2011 ,Promotional Materials - Sector Events - Abroad,UK Trade & Investment - Sectors Group,AWARE PROMOTIONAL MERCHANDISE LTD,148300,36.00 
UK Trade and Investment Programme,UK Trade and Investment Programme,13/06/2011 ,Stand Space/rental costs - Sector Events - Abroad,UK Trade & Investment - Sectors Group,BME GLOBAL LTD,148313,13693.00 
UK Trade and Investment Programme,UK Trade and Investment Programme,13/06/2011 ,Event Management - Sector Events - Abroad,UK Trade & Investment - Sectors Group,RAINMAKER GLOBAL BUSINESS DEVELOPMENT LTD,148298,3225.00 
UK Trade and Investment Programme,UK Trade and Investment Programme,13/06/2011 ,Event Management - Sector Events - UK,UK Trade & Investment - Sectors Group,BUSINESS TO BUSINESS EXHIBITIONS LTD,148305,680.00 
UK Trade and Investment Programme,UK Trade and Investment Programme,13/06/2011 ,Event Management - Sector Events - UK,UK Trade & Investment - Sectors Group,EXPERIENTAL MARKETING LTD,148299,200.00 
UK Trade and Investment Programme,UK Trade and Investment Programme,13/06/2011 ,Advertising - Sector Events - UK,UK Trade & Investment - Sectors Group,PUBLISHING EVENTS LTD,148301,1675.00 
UK Trade and Investment Programme,UK Trade and Investment Programme,13/06/2011 ,Travel and Subsistence UK - Security Farnborough,UK Trade & Investment - Defence and Security Organisation,CROWNE PLAZA LONDON-ST JAMES,148268,309.85 
UK Trade and Investment Programme,UK Trade and Investment Programme,13/06/2011 ,Travel and Subsistence UK - Security Farnborough,UK Trade & Investment - Defence and Security Organisation,CROWNE PLAZA LONDON-ST JAMES,148314,630.00 
UK Trade and Investment Programme,UK Trade and Investment Programme,13/06/2011 ,Printing Costs - Trade Development Support,UK Trade & Investment - International Group,BARNARD & WESTWOOD LTD,148282,422.24 
UK Trade and Investment Programme,UK Trade and Investment Programme,13/06/2011 ,Stand Construction Costs - Trade Marketing Events,UK Trade & Investment - Marketing & Communications Group,CLEARVIEW IMAGING SERVICES LTD,148295,7813.00 
UK Trade and Investment Programme,UK Trade and Investment Programme,13/06/2011 ,Design Services - Trade Marketing Events,UK Trade & Investment - Marketing & Communications Group,CLEARVIEW IMAGING SERVICES LTD,148296,715.00 
UK Trade and Investment Programme,UK Trade and Investment Programme,13/06/2011 ,Design Services - Trade Marketing Events,UK Trade & Investment - Marketing & Communications Group,CLEARVIEW IMAGING SERVICES LTD,148297,4185.00 
UK Trade and Investment Programme,UK Trade and Investment Programme,13/06/2011 ,Stand Construction Costs - Trade Marketing Events,UK Trade & Investment - Defence and Security Organisation,EDGE EXHIBITION DESIGN LTD,148286,7446.00 
UK Trade and Investment Programme,UK Trade and Investment Programme,13/06/2011 ,Stand Construction Costs - Trade Marketing Events,UK Trade & Investment - Defence and Security Organisation,EDGE EXHIBITION DESIGN LTD,148288,735.60 
UK Trade and Investment Programme,UK Trade and Investment Programme,13/06/2011 ,Stand Construction Costs - Trade Marketing Events,UK Trade & Investment - Defence and Security Organisation,EDGE EXHIBITION DESIGN LTD,148289,5880.00 
UK Trade and Investment Programme,UK Trade and Investment Programme,13/06/2011 ,Stand Construction Costs - Trade Marketing Events,UK Trade & Investment - Defence and Security Organisation,EDGE EXHIBITION DESIGN LTD,148290,3504.00 
UK Trade and Investment Programme,UK Trade and Investment Programme,13/06/2011 ,Courier Services - Trade Marketing Events,UK Trade & Investment - Marketing & Communications Group,ELITEXPO CARGO SYSTEMS INC,147706,276.11 
UK Trade and Investment Programme,UK Trade and Investment Programme,13/06/2011 ,Courier Services - Trade Marketing Events,UK Trade & Investment - Marketing & Communications Group,ELITEXPO CARGO SYSTEMS INC,147831,1104.65 
UK Trade and Investment Programme,UK Trade and Investment Programme,13/06/2011 ,Rental of Accomodation - Trade Marketing Events,UK Trade & Investment - Defence and Security Organisation,EVENTS IN FOCUS LTD,148284,10070.00 
UK Trade and Investment Programme,UK Trade and Investment Programme,13/06/2011 ,Stand Construction Costs - Trade Marketing Events,UK Trade & Investment - Marketing & Communications Group,ROCKET EXHIBITIONS & EVENTS LTD,148267,24879.63 
UK Trade and Investment Programme,UK Trade and Investment Programme,14/06/2011 ,Other IT Services - Asia Task Force,UK Trade & Investment - International Group,S & S DATA LTD,148331,496.50 
UK Trade and Investment Programme,UK Trade and Investment Programme,14/06/2011 ,Event Management - Development Business,UK Trade & Investment - Sectors Group,BIRMINGHAM CHAMBER OF COMMERCE AND INDUSTRY,148321,27000.00 
UK Trade and Investment Programme,UK Trade and Investment Programme,14/06/2011 ,Travel and Subsistence O'seas - Gateway to Global Growth,UK Trade & Investment - Regional Directorate,AGENDA RESOURCE MANAGEMENT LTD,148406,860.00 
UK Trade and Investment Programme,UK Trade and Investment Programme,14/06/2011 ,Design Services - Inward Investment Publications,UK Trade & Investment - Marketing & Communications Group,RED STONE DESIGN LTD,148337,495.00 
UK Trade and Investment Programme,UK Trade and Investment Programme,14/06/2011 ,Scheme Management Charges - Inward Investment Research,UK Trade & Investment - Business Group,FUSE 8 LTD,148212,4450.00 
UK Trade and Investment Programme,UK Trade and Investment Programme,14/06/2011 ,Travel and Subsistence O'seas - Market Visit Scheme,UK Trade & Investment - Regional Directorate,1-2-4 SERVICES LTD,148405,665.00 
UK Trade and Investment Programme,UK Trade and Investment Programme,14/06/2011 ,Travel and Subsistence O'seas - Market Visit Scheme,UK Trade & Investment - Regional Directorate,BIOSTATUS LTD,148366,750.00 
UK Trade and Investment Programme,UK Trade and Investment Programme,14/06/2011 ,Travel and Subsistence O'seas - Market Visit Scheme,UK Trade & Investment - Regional Directorate,PIPESHIELD INTERNATIONAL LTD,148373,200.00 
UK Trade and Investment Programme,UK Trade and Investment Programme,14/06/2011 ,Travel and Subsistence O'seas - Market Visit Scheme,UK Trade & Investment - Regional Directorate,R A RODRIGUEZ (UK) LTD,148316,200.00 
UK Trade and Investment Programme,UK Trade and Investment Programme,14/06/2011 ,Travel and Subsistence O'seas - Market Visit Scheme,UK Trade & Investment - Regional Directorate,SPRAYBOOTH TECHNOLOGY LTD,148309,200.00 
UK Trade and Investment Programme,UK Trade and Investment Programme,14/06/2011 ,Scheme Management Charges - Passport Business Development Credits,UK Trade & Investment - Regional Directorate,ASSESSMENT IN CARE LTD,148248,1376.27 
UK Trade and Investment Programme,UK Trade and Investment Programme,14/06/2011 ,Scheme Management Charges - Passport Business Development Credits,UK Trade & Investment - Regional Directorate,DICKY BAG LTD,148203,940.00 
UK Trade and Investment Programme,UK Trade and Investment Programme,14/06/2011 ,Scheme Management Charges - Passport Business Development Credits,UK Trade & Investment - Regional Directorate,EASY ANIMAL LTD,148247,248.66 
UK Trade and Investment Programme,UK Trade and Investment Programme,14/06/2011 ,Scheme Management Charges - Passport Business Development Credits,UK Trade & Investment - Regional Directorate,EQUIPE TRAINING LTD,148207,507.46 
UK Trade and Investment Programme,UK Trade and Investment Programme,14/06/2011 ,Scheme Management Charges - Passport Business Development Credits,UK Trade & Investment - Regional Directorate,MDB COACHING ASSOCIATES LTD,148159,1100.24 
UK Trade and Investment Programme,UK Trade and Investment Programme,14/06/2011 ,Scheme Management Charges - Passport Business Development Credits,UK Trade & Investment - Regional Directorate,MDB COACHING ASSOCIATES LTD,148160,399.76 
UK Trade and Investment Programme,UK Trade and Investment Programme,14/06/2011 ,Scheme Management Charges - Passport Business Development Credits,UK Trade & Investment - Regional Directorate,MEDICAL INSTALLATIONS GROUP LTD,148157,1500.00 
UK Trade and Investment Programme,UK Trade and Investment Programme,14/06/2011 ,Scheme Management Charges - Passport Business Development Credits,UK Trade & Investment - Regional Directorate,NFI LTD,148249,409.66 
UK Trade and Investment Programme,UK Trade and Investment Programme,14/06/2011 ,Scheme Management Charges - Passport Business Development Credits,UK Trade & Investment - Regional Directorate,REPTON TRAINING LTD,148154,501.82 
UK Trade and Investment Programme,UK Trade and Investment Programme,14/06/2011 ,Scheme Management Charges - Passport Business Development Credits,UK Trade & Investment - Regional Directorate,TRUTEX LTD,148156,186.32 
UK Trade and Investment Programme,UK Trade and Investment Programme,14/06/2011 ,Scheme Management Charges - Passport Business Development Credits,UK Trade & Investment - Regional Directorate,V GUYATT M REEVES & M HALLIDAY T/A HALLIDAY REEVES,148158,1500.00 
UK Trade and Investment Programme,UK Trade and Investment Programme,14/06/2011 ,Travel and Subsistence O'seas - Passport Development & Events,UK Trade & Investment - Regional Directorate,ECO ENERGY RATING LTD,148365,500.00 
UK Trade and Investment Programme,UK Trade and Investment Programme,14/06/2011 ,Venue Hire - Passport Development & Events,UK Trade & Investment - Regional Directorate,"IMAGO @ LOUGHBOROUGH LIMITED T/A IMAGO, THE LINK HOTEL & HOLYWELL PARK",148293,63.34 
UK Trade and Investment Programme,UK Trade and Investment Programme,14/06/2011 ,Venue Hire - Passport Development & Events,UK Trade & Investment - Regional Directorate,"IMAGO @ LOUGHBOROUGH LIMITED T/A IMAGO, THE LINK HOTEL & HOLYWELL PARK",148293,378.33 
UK Trade and Investment Programme,UK Trade and Investment Programme,14/06/2011 ,Training - General - Passport Development & Events,UK Trade & Investment - Regional Directorate,THE BRITISH CHAMBERS OF COMMERCE,148404,1338.00 
UK Trade and Investment Programme,UK Trade and Investment Programme,14/06/2011 ,Event Management - Sector Events - UK,UK Trade & Investment - Sectors Group,BRITISH FASHION COUNCIL,148374,6000.00 
UK Trade and Investment Programme,UK Trade and Investment Programme,14/06/2011 ,Travel and Subsistence UK - Sector Events - UK,UK Trade & Investment - Sectors Group,"Personal Expense, Name Witheld",505182,324.00 
UK Trade and Investment Programme,UK Trade and Investment Programme,14/06/2011 ,Online Services charges - Sector Events - UK,UK Trade & Investment - Sectors Group,THE FINANCIAL TIMES LTD,148328,800.00 
UK Trade and Investment Programme,UK Trade and Investment Programme,14/06/2011 ,Other Transportation Hire - Security Events,UK Trade & Investment - Defence and Security Organisation,GOVERNMENT CAR AND DESPATCH AGENCY,148372,5467.75 
UK Trade and Investment Programme,UK Trade and Investment Programme,14/06/2011 ,Promotional Materials - Trade Marketing Events,UK Trade & Investment - Marketing & Communications Group,AWARE PROMOTIONAL MERCHANDISE LTD,148403,1542.00 
UK Trade and Investment Programme,UK Trade and Investment Programme,14/06/2011 ,Event Management - Trade Marketing Events,UK Trade & Investment - Regional Directorate,BIRMINGHAM SCIENCE PARK ASTON LTD,148319,56.00 
UK Trade and Investment Programme,UK Trade and Investment Programme,14/06/2011 ,Postage costs - Trade Marketing Events,UK Trade & Investment - Regional Directorate,ROYAL MAIL,148283,60.76 
UK Trade and Investment Programme,UK Trade and Investment Programme,14/06/2011 ,Sponsors Grants - Trade Show Access Programme,UK Trade & Investment - Sectors Group,ELECTRONIC EXPORTERS GROUP,148375,5040.00 
UK Trade and Investment Programme,UK Trade and Investment Programme,14/06/2011 ,Basic Grants - Trade Show Access Programme,UK Trade & Investment - Sectors Group,ELECTRONIC EXPORTERS GROUP,148376,21000.00 
UK Trade and Investment Programme,UK Trade and Investment Programme,14/06/2011 ,"Other IT Services - UKTI Customer Data Standards, Migration and Mining",UK Trade & Investment - IT and Finance Group,S & S DATA LTD,148346,448.72 
UK Trade and Investment Programme,UK Trade and Investment Programme,14/06/2011 ,"Other IT Services - UKTI Customer Data Standards, Migration and Mining",UK Trade & Investment - IT and Finance Group,S & S DATA LTD,148347,124.60 
UK Trade and Investment Programme,UK Trade and Investment Programme,14/06/2011 ,"Other IT Services - UKTI Customer Data Standards, Migration and Mining",UK Trade & Investment - IT and Finance Group,S & S DATA LTD,148348,94.90 
UK Trade and Investment Programme,UK Trade and Investment Programme,14/06/2011 ,"Other IT Services - UKTI Customer Data Standards, Migration and Mining",UK Trade & Investment - IT and Finance Group,S & S DATA LTD,148349,83.95 
UK Trade and Investment Programme,UK Trade and Investment Programme,14/06/2011 ,"Other IT Services - UKTI Customer Data Standards, Migration and Mining",UK Trade & Investment - IT and Finance Group,S & S DATA LTD,148350,47.45 
UK Trade and Investment Programme,UK Trade and Investment Programme,14/06/2011 ,"Other IT Services - UKTI Customer Data Standards, Migration and Mining",UK Trade & Investment - IT and Finance Group,S & S DATA LTD,148352,61.60 
UK Trade and Investment Programme,UK Trade and Investment Programme,14/06/2011 ,"Other IT Services - UKTI Customer Data Standards, Migration and Mining",UK Trade & Investment - IT and Finance Group,S & S DATA LTD,148354,186.60 
UK Trade and Investment Programme,UK Trade and Investment Programme,14/06/2011 ,"Other IT Services - UKTI Customer Data Standards, Migration and Mining",UK Trade & Investment - IT and Finance Group,S & S DATA LTD,148356,18.25 
UK Trade and Investment Programme,UK Trade and Investment Programme,14/06/2011 ,"Other IT Services - UKTI Customer Data Standards, Migration and Mining",UK Trade & Investment - IT and Finance Group,S & S DATA LTD,148359,2300.75 
UK Trade and Investment Programme,UK Trade and Investment Programme,14/06/2011 ,"Other IT Services - UKTI Customer Data Standards, Migration and Mining",UK Trade & Investment - IT and Finance Group,S & S DATA LTD,148361,2036.70 
UK Trade and Investment Programme,UK Trade and Investment Programme,15/06/2011 ,Car Hire and Leasing - ,UK Trade & Investment - Defence and Security Organisation,"ABBEY TAXIS LTD (BATH, CHIPPENHAM)",148469,301.20 
UK Trade and Investment Programme,UK Trade and Investment Programme,15/06/2011 ,Venue Hire - ,UK Trade & Investment - Defence and Security Organisation,FOREIGN AND COMMONWEALTH OFFICE (FCO),147599,84.64 
UK Trade and Investment Programme,UK Trade and Investment Programme,15/06/2011 ,Telecommunications - ,UK Trade & Investment - Defence and Security Organisation,INTERCALL CONFERENCING SERVICES LTD,148266,50.04 
UK Trade and Investment Programme,UK Trade and Investment Programme,15/06/2011 ,Travel and Subsistence O'seas - Gateway to Global Growth,UK Trade & Investment - Regional Directorate,XIANG TRADING LTD,148475,995.00 
UK Trade and Investment Programme,UK Trade and Investment Programme,15/06/2011 ,Authoring and Copywriting Costs - Inward Investment Publications,UK Trade & Investment - Marketing & Communications Group,LORRAINE SHAH,148460,158.85 
UK Trade and Investment Programme,UK Trade and Investment Programme,15/06/2011 ,Printing Costs - Inward Investment Publicity,UK Trade & Investment - Marketing & Communications Group,BRAHM LTD T/A BRASS,148324,3073.00 
UK Trade and Investment Programme,UK Trade and Investment Programme,15/06/2011 ,Event Management - Inward Investment Publicity,UK Trade & Investment - Marketing & Communications Group,FOREIGN AND COMMONWEALTH OFFICE (FCO),147587,124.48 
UK Trade and Investment Programme,UK Trade and Investment Programme,15/06/2011 ,Media and Press Services - Inward Investment Publicity,UK Trade & Investment - Marketing & Communications Group,FOREIGN AND COMMONWEALTH OFFICE (FCO),147600,331.02 
UK Trade and Investment Programme,UK Trade and Investment Programme,15/06/2011 ,Media and Press Services - Inward Investment Publicity,UK Trade & Investment - Marketing & Communications Group,FOREIGN AND COMMONWEALTH OFFICE (FCO),147601,3268.79 
UK Trade and Investment Programme,UK Trade and Investment Programme,15/06/2011 ,Event Management - Inward Investment Publicity,UK Trade & Investment - Marketing & Communications Group,FOREIGN AND COMMONWEALTH OFFICE (FCO),147605,1519.76 
UK Trade and Investment Programme,UK Trade and Investment Programme,15/06/2011 ,Event Management - Inward Investment Publicity,UK Trade & Investment - Marketing & Communications Group,FOREIGN AND COMMONWEALTH OFFICE (FCO),147611,1519.76 
UK Trade and Investment Programme,UK Trade and Investment Programme,15/06/2011 ,Event Management - Inward Investment Publicity,UK Trade & Investment - Marketing & Communications Group,FOREIGN AND COMMONWEALTH OFFICE (FCO),147612,1624.83 
UK Trade and Investment Programme,UK Trade and Investment Programme,15/06/2011 ,Event Management - Inward Investment Publicity,UK Trade & Investment - Marketing & Communications Group,FOREIGN AND COMMONWEALTH OFFICE (FCO),147613,402.61 
UK Trade and Investment Programme,UK Trade and Investment Programme,15/06/2011 ,Video Production Services - Inward Investment Publicity,UK Trade & Investment - Marketing & Communications Group,LION TELEVISION LTD,148414,960.00 
UK Trade and Investment Programme,UK Trade and Investment Programme,15/06/2011 ,Online Services charges - Inward Investment Research,UK Trade & Investment - Business Group,FINANCIAL TIMES LTD T/A FT BUSINESS,148367,50000.00 
UK Trade and Investment Programme,UK Trade and Investment Programme,15/06/2011 ,Scheme Management Charges - Inward Investment Research,UK Trade & Investment - Business Group,FUSE 8 LTD,148463,50.00 
UK Trade and Investment Programme,UK Trade and Investment Programme,15/06/2011 ,Research and Development Costs - Inward Investment Research,UK Trade & Investment - Marketing & Communications Group,OIA LTD,148211,48125.00 
UK Trade and Investment Programme,UK Trade and Investment Programme,15/06/2011 ,Travel and Subsistence O'seas - Market Visit Scheme,UK Trade & Investment - Regional Directorate,GARDNER BTC LTD,148473,400.00 
UK Trade and Investment Programme,UK Trade and Investment Programme,15/06/2011 ,Travel and Subsistence O'seas - Market Visit Scheme,UK Trade & Investment - Regional Directorate,MCCALLS SPECIAL PRODUCTS LTD T/A MACALLOY,148415,130.00 
UK Trade and Investment Programme,UK Trade and Investment Programme,15/06/2011 ,Travel and Subsistence O'seas - Market Visit Scheme,UK Trade & Investment - Regional Directorate,MCCALLS SPECIAL PRODUCTS LTD T/A MACALLOY,148415,1030.00 
UK Trade and Investment Programme,UK Trade and Investment Programme,15/06/2011 ,Travel and Subsistence O'seas - Market Visit Scheme,UK Trade & Investment - Regional Directorate,NORTH STAFFORDSHIRE CHAMBER OF COMMERCE AND INDUSTRY,148472,750.00 
UK Trade and Investment Programme,UK Trade and Investment Programme,15/06/2011 ,Travel and Subsistence O'seas - Market Visit Scheme,UK Trade & Investment - Regional Directorate,SOUTH EAST TRADE & INVESTMENT LTD,148471,200.00 
UK Trade and Investment Programme,UK Trade and Investment Programme,15/06/2011 ,Travel and Subsistence O'seas - Market Visit Scheme,UK Trade & Investment - Regional Directorate,SOUTH EAST TRADE & INVESTMENT LTD,148471,200.00 
UK Trade and Investment Programme,UK Trade and Investment Programme,15/06/2011 ,Travel and Subsistence O'seas - Market Visit Scheme,UK Trade & Investment - Regional Directorate,SOUTH EAST TRADE & INVESTMENT LTD,148471,200.00 
UK Trade and Investment Programme,UK Trade and Investment Programme,15/06/2011 ,Travel and Subsistence O'seas - Market Visit Scheme,UK Trade & Investment - Regional Directorate,SOUTH EAST TRADE & INVESTMENT LTD,148471,650.00 
UK Trade and Investment Programme,UK Trade and Investment Programme,15/06/2011 ,Travel and Subsistence O'seas - Market Visit Scheme,UK Trade & Investment - Regional Directorate,SOUTH EAST TRADE & INVESTMENT LTD,148471,750.00 
UK Trade and Investment Programme,UK Trade and Investment Programme,15/06/2011 ,Travel and Subsistence O'seas - Market Visit Scheme,UK Trade & Investment - Regional Directorate,SOUTH EAST TRADE & INVESTMENT LTD,148471,950.00 
UK Trade and Investment Programme,UK Trade and Investment Programme,15/06/2011 ,Travel and Subsistence O'seas - Market Visit Scheme,UK Trade & Investment - Regional Directorate,TEMBE DIY PRODUCTS LTD,148474,665.00 
UK Trade and Investment Programme,UK Trade and Investment Programme,15/06/2011 ,Event Management - Markets Fund,UK Trade & Investment - International Group,FOREIGN AND COMMONWEALTH OFFICE (FCO),147549,234.76 
UK Trade and Investment Programme,UK Trade and Investment Programme,15/06/2011 ,Event Management - Markets Fund,UK Trade & Investment - International Group,FOREIGN AND COMMONWEALTH OFFICE (FCO),147550,97.17 
UK Trade and Investment Programme,UK Trade and Investment Programme,15/06/2011 ,Event Management - Markets Fund,UK Trade & Investment - International Group,FOREIGN AND COMMONWEALTH OFFICE (FCO),147551,77.74 
UK Trade and Investment Programme,UK Trade and Investment Programme,15/06/2011 ,Event Management - Markets Fund,UK Trade & Investment - International Group,FOREIGN AND COMMONWEALTH OFFICE (FCO),147596,-120.77 
UK Trade and Investment Programme,UK Trade and Investment Programme,15/06/2011 ,Event Management - Markets Fund,UK Trade & Investment - International Group,FOREIGN AND COMMONWEALTH OFFICE (FCO),147597,-120.77 
UK Trade and Investment Programme,UK Trade and Investment Programme,15/06/2011 ,Event Management - Markets Fund,UK Trade & Investment - International Group,FOREIGN AND COMMONWEALTH OFFICE (FCO),147780,19.43 
UK Trade and Investment Programme,UK Trade and Investment Programme,15/06/2011 ,Event Management - Markets Fund,UK Trade & Investment - International Group,FOREIGN AND COMMONWEALTH OFFICE (FCO),147781,58.30 
UK Trade and Investment Programme,UK Trade and Investment Programme,15/06/2011 ,Event Management - Markets Fund,UK Trade & Investment - International Group,FOREIGN AND COMMONWEALTH OFFICE (FCO),147782,58.30 
UK Trade and Investment Programme,UK Trade and Investment Programme,15/06/2011 ,Event Management - Markets Fund,UK Trade & Investment - International Group,FOREIGN AND COMMONWEALTH OFFICE (FCO),147783,233.21 
UK Trade and Investment Programme,UK Trade and Investment Programme,15/06/2011 ,Event Management - Markets Fund,UK Trade & Investment - International Group,FOREIGN AND COMMONWEALTH OFFICE (FCO),147784,538.34 
UK Trade and Investment Programme,UK Trade and Investment Programme,15/06/2011 ,Event Management - Markets Fund,UK Trade & Investment - International Group,FOREIGN AND COMMONWEALTH OFFICE (FCO),147785,136.04 
UK Trade and Investment Programme,UK Trade and Investment Programme,15/06/2011 ,Event Management - Markets Fund,UK Trade & Investment - International Group,FOREIGN AND COMMONWEALTH OFFICE (FCO),147786,116.60 
UK Trade and Investment Programme,UK Trade and Investment Programme,15/06/2011 ,Event Management - Markets Fund,UK Trade & Investment - International Group,FOREIGN AND COMMONWEALTH OFFICE (FCO),147787,85.51 
UK Trade and Investment Programme,UK Trade and Investment Programme,15/06/2011 ,Event Management - Markets Fund,UK Trade & Investment - International Group,FOREIGN AND COMMONWEALTH OFFICE (FCO),147788,499.84 
UK Trade and Investment Programme,UK Trade and Investment Programme,15/06/2011 ,Event Management - Markets Fund,UK Trade & Investment - International Group,FOREIGN AND COMMONWEALTH OFFICE (FCO),147789,510.81 
UK Trade and Investment Programme,UK Trade and Investment Programme,15/06/2011 ,Event Management - Outward missions,UK Trade & Investment - Sectors Group,ADS GROUP LTD,148411,4000.00 
UK Trade and Investment Programme,UK Trade and Investment Programme,15/06/2011 ,Event Management - Outward missions,UK Trade & Investment - Sectors Group,FOREIGN AND COMMONWEALTH OFFICE (FCO),147553,590.42 
UK Trade and Investment Programme,UK Trade and Investment Programme,15/06/2011 ,Event Management - Outward missions,UK Trade & Investment - Sectors Group,FOREIGN AND COMMONWEALTH OFFICE (FCO),147554,1360.93 
UK Trade and Investment Programme,UK Trade and Investment Programme,15/06/2011 ,Event Management - Outward missions,UK Trade & Investment - Sectors Group,FOREIGN AND COMMONWEALTH OFFICE (FCO),147584,896.24 
UK Trade and Investment Programme,UK Trade and Investment Programme,15/06/2011 ,Event Management - Outward missions,UK Trade & Investment - Sectors Group,FOREIGN AND COMMONWEALTH OFFICE (FCO),147595,174.97 
UK Trade and Investment Programme,UK Trade and Investment Programme,15/06/2011 ,Event Management - Outward missions,UK Trade & Investment - Sectors Group,FOREIGN AND COMMONWEALTH OFFICE (FCO),147603,3155.97 
UK Trade and Investment Programme,UK Trade and Investment Programme,15/06/2011 ,Event Management - Outward missions,UK Trade & Investment - Sectors Group,INTERNATIONAL VISUAL COMMUNICATIONS ASSOCIATION [IVCA],148412,4000.00 
UK Trade and Investment Programme,UK Trade and Investment Programme,15/06/2011 ,Fees and Charges - Overseas Market Introduction Service,UK Trade & Investment - IT and Finance Group,8 BALL MAIL ORDER LTD,148431,850.00 
UK Trade and Investment Programme,UK Trade and Investment Programme,15/06/2011 ,Training - General - Passport Development & Events,UK Trade & Investment - Regional Directorate,GJ INTERNATIONAL LTD,148407,950.00 
UK Trade and Investment Programme,UK Trade and Investment Programme,15/06/2011 ,Training - General - Passport Development & Events,UK Trade & Investment - Regional Directorate,GJ INTERNATIONAL LTD,148408,950.00 
UK Trade and Investment Programme,UK Trade and Investment Programme,15/06/2011 ,Venue Hire - Passport Development & Events,UK Trade & Investment - Regional Directorate,HOLIDAY INN,148476,640.00 
UK Trade and Investment Programme,UK Trade and Investment Programme,15/06/2011 ,Venue Hire - Passport Development & Events,UK Trade & Investment - Regional Directorate,HOLIDAY INN,148476,1716.67 
UK Trade and Investment Programme,UK Trade and Investment Programme,15/06/2011 ,Training - General - Passport Development & Events,UK Trade & Investment - Regional Directorate,SOUTH EAST TRADE & INVESTMENT LTD,148462,2302.50 
UK Trade and Investment Programme,UK Trade and Investment Programme,15/06/2011 ,Training - General - Passport Development & Events,UK Trade & Investment - Regional Directorate,SOUTH EAST TRADE & INVESTMENT LTD,148462,5500.00 
UK Trade and Investment Programme,UK Trade and Investment Programme,15/06/2011 ,Training - General - Passport Development & Events,UK Trade & Investment - Regional Directorate,SOUTH EAST TRADE & INVESTMENT LTD,148462,5500.00 
UK Trade and Investment Programme,UK Trade and Investment Programme,15/06/2011 ,Event Management - Sector Events - Abroad,UK Trade & Investment - Sectors Group,FOREIGN AND COMMONWEALTH OFFICE (FCO),147542,1344.36 
UK Trade and Investment Programme,UK Trade and Investment Programme,15/06/2011 ,Other Transportation Hire - Sector Events - Abroad,UK Trade & Investment - Sectors Group,FOREIGN AND COMMONWEALTH OFFICE (FCO),147547,203.98 
UK Trade and Investment Programme,UK Trade and Investment Programme,15/06/2011 ,Event Management - Sector Events - Abroad,UK Trade & Investment - Sectors Group,FOREIGN AND COMMONWEALTH OFFICE (FCO),147555,4.39 
UK Trade and Investment Programme,UK Trade and Investment Programme,15/06/2011 ,Event Management - Sector Events - Abroad,UK Trade & Investment - Sectors Group,FOREIGN AND COMMONWEALTH OFFICE (FCO),147556,32.59 
UK Trade and Investment Programme,UK Trade and Investment Programme,15/06/2011 ,Event Management - Sector Events - Abroad,UK Trade & Investment - Sectors Group,FOREIGN AND COMMONWEALTH OFFICE (FCO),147557,2210.12 
UK Trade and Investment Programme,UK Trade and Investment Programme,15/06/2011 ,Event Management - Sector Events - Abroad,UK Trade & Investment - Sectors Group,FOREIGN AND COMMONWEALTH OFFICE (FCO),147558,2632.76 
UK Trade and Investment Programme,UK Trade and Investment Programme,15/06/2011 ,Event Management - Sector Events - Abroad,UK Trade & Investment - Sectors Group,FOREIGN AND COMMONWEALTH OFFICE (FCO),147586,257.26 
UK Trade and Investment Programme,UK Trade and Investment Programme,15/06/2011 ,Event Management - Sector Events - Abroad,UK Trade & Investment - Sectors Group,FOREIGN AND COMMONWEALTH OFFICE (FCO),147586,2500.00 
UK Trade and Investment Programme,UK Trade and Investment Programme,15/06/2011 ,Event Management - Sector Events - Abroad,UK Trade & Investment - Sectors Group4,FOREIGN AND COMMONWEALTH OFFICE (FCO),147593,53.84 
UK Trade and Investment Programme,UK Trade and Investment Programme,15/06/2011 ,Event Management - Sector Events - Abroad,UK Trade & Investment - Sectors Group,FOREIGN AND COMMONWEALTH OFFICE (FCO),147606,-1990.88 
UK Trade and Investment Programme,UK Trade and Investment Programme,15/06/2011 ,Event Management - Sector Events - Abroad,UK Trade & Investment - Sectors Group,FOREIGN AND COMMONWEALTH OFFICE (FCO),147608,334.32 
UK Trade and Investment Programme,UK Trade and Investment Programme,15/06/2011 ,Event Management - Sector Events - Abroad,UK Trade & Investment - Sectors Group,FOREIGN AND COMMONWEALTH OFFICE (FCO),147608,425.54 
UK Trade and Investment Programme,UK Trade and Investment Programme,15/06/2011 ,Event Management - Sector Events - Abroad,UK Trade & Investment - Sectors Group,FOREIGN AND COMMONWEALTH OFFICE (FCO),147609,323.10 
UK Trade and Investment Programme,UK Trade and Investment Programme,15/06/2011 ,Event Management - Sector Events - Abroad,UK Trade & Investment - Sectors Group,FOREIGN AND COMMONWEALTH OFFICE (FCO),147610,303.95 
UK Trade and Investment Programme,UK Trade and Investment Programme,15/06/2011 ,Event Management - Sector Events - UK,UK Trade & Investment - Sectors Group,ADS GROUP LTD,148411,668.10 
UK Trade and Investment Programme,UK Trade and Investment Programme,15/06/2011 ,Event Management - Sector Events - UK,UK Trade & Investment - Sectors Group,ADS GROUP LTD,148411,2552.15 
UK Trade and Investment Programme,UK Trade and Investment Programme,15/06/2011 ,Rental of Accomodation - Sector Events - UK,UK Trade & Investment - Sectors Group,ARUNDEL HOUSE HOTEL,148470,4603.50 
UK Trade and Investment Programme,UK Trade and Investment Programme,15/06/2011 ,Translation/Interpretation services - Sector Events - UK,UK Trade & Investment - Sectors Group,CHINA BRITAIN BUSINESS COUNCIL,148233,400.00 
UK Trade and Investment Programme,UK Trade and Investment Programme,15/06/2011 ,Event Management - Sector Events - UK,UK Trade & Investment - Sectors Group,CHINA BRITAIN BUSINESS COUNCIL,148234,219.00 
UK Trade and Investment Programme,UK Trade and Investment Programme,15/06/2011 ,Translation/Interpretation services - Sector Events - UK,UK Trade & Investment - Sectors Group,CHINA BRITAIN BUSINESS COUNCIL,148234,400.00 
UK Trade and Investment Programme,UK Trade and Investment Programme,15/06/2011 ,Travel and Subsistence O'seas - Security Events,UK Trade & Investment - Defence and Security Organisation,FOREIGN AND COMMONWEALTH OFFICE (FCO),147541,-3001.40 
UK Trade and Investment Programme,UK Trade and Investment Programme,15/06/2011 ,Travel and Subsistence O'seas - Security Events,UK Trade & Investment - Defence and Security Organisation,FOREIGN AND COMMONWEALTH OFFICE (FCO),147559,2067.47 
UK Trade and Investment Programme,UK Trade and Investment Programme,15/06/2011 ,Travel and Subsistence O'seas - Security Events,UK Trade & Investment - Defence and Security Organisation,FOREIGN AND COMMONWEALTH OFFICE (FCO),147560,230.28 
UK Trade and Investment Programme,UK Trade and Investment Programme,15/06/2011 ,Travel and Subsistence O'seas - Security Events,UK Trade & Investment - Defence and Security Organisation,FOREIGN AND COMMONWEALTH OFFICE (FCO),147565,3214.65 
UK Trade and Investment Programme,UK Trade and Investment Programme,15/06/2011 ,Travel and Subsistence O'seas - Security Events,UK Trade & Investment - Defence and Security Organisation,FOREIGN AND COMMONWEALTH OFFICE (FCO),147585,131.25 
UK Trade and Investment Programme,UK Trade and Investment Programme,15/06/2011 ,Travel and Subsistence UK - Security Farnborough,UK Trade & Investment - Defence and Security Organisation,CROWNE PLAZA LONDON-ST JAMES,148270,11.78 
UK Trade and Investment Programme,UK Trade and Investment Programme,15/06/2011 ,Travel and Subsistence UK - Security Farnborough,UK Trade & Investment - Defence and Security Organisation,CROWNE PLAZA LONDON-ST JAMES,148270,828.22 
UK Trade and Investment Programme,UK Trade and Investment Programme,15/06/2011 ,Other Transportation Hire - Trade Development Support,UK Trade & Investment - International Group,FOREIGN AND COMMONWEALTH OFFICE (FCO),147589,356.42 
UK Trade and Investment Programme,UK Trade and Investment Programme,15/06/2011 ,Other Transportation Hire - Trade Development Support,UK Trade & Investment - International Group,FOREIGN AND COMMONWEALTH OFFICE (FCO),147589,427.70 
UK Trade and Investment Programme,UK Trade and Investment Programme,15/06/2011 ,Other Transportation Hire - Trade Development Support,UK Trade & Investment - International Group,FOREIGN AND COMMONWEALTH OFFICE (FCO),147590,513.36 
UK Trade and Investment Programme,UK Trade and Investment Programme,15/06/2011 ,Other Transportation Hire - Trade Development Support,UK Trade & Investment - International Group,FOREIGN AND COMMONWEALTH OFFICE (FCO),147590,616.04 
UK Trade and Investment Programme,UK Trade and Investment Programme,15/06/2011 ,Event Management - Trade Development Support,UK Trade & Investment - International Group,FOREIGN AND COMMONWEALTH OFFICE (FCO),147591,657.29 
UK Trade and Investment Programme,UK Trade and Investment Programme,15/06/2011 ,Event Management - Trade Development Support,UK Trade & Investment - International Group,FOREIGN AND COMMONWEALTH OFFICE (FCO),147592,1901.44 
UK Trade and Investment Programme,UK Trade and Investment Programme,15/06/2011 ,Travel and Subsistence O'seas - Trade Development Support,UK Trade & Investment - International Group,FOREIGN AND COMMONWEALTH OFFICE (FCO),147607,185.53 
UK Trade and Investment Programme,UK Trade and Investment Programme,15/06/2011 ,Stand Space/rental costs - Trade Marketing Events,UK Trade & Investment - Defence and Security Organisation,F&R EXHIBITION & CONFERENCE SDN BHD,148261,1996.42 
UK Trade and Investment Programme,UK Trade and Investment Programme,15/06/2011 ,Stand Space/rental costs - Trade Marketing Events,UK Trade & Investment - Regional Directorate,NOF ENERGY LTD,148477,490.00 
UK Trade and Investment Programme,UK Trade and Investment Programme,15/06/2011 ,Event Management - Trade Marketing Events,UK Trade & Investment - Regional Directorate,SOUTH EAST TRADE & INVESTMENT LTD,148461,2400.00 
UK Trade and Investment Programme,UK Trade and Investment Programme,15/06/2011 ,Design Services - Trade Marketing Publicity,UK Trade & Investment - Marketing & Communications Group,CREATIVEWORKS PARTNERSHIP LLP,148410,2323.50 
UK Trade and Investment Programme,UK Trade and Investment Programme,15/06/2011 ,Authoring and Copywriting Costs - Trade Marketing Publicity,UK Trade & Investment - Marketing & Communications Group,DE MIERRE COMMUNICATIONS,148464,1800.00 
UK Trade and Investment Programme,UK Trade and Investment Programme,15/06/2011 ,Promotional Materials - Trade Marketing Publicity,UK Trade & Investment - Sectors Group,FOREIGN AND COMMONWEALTH OFFICE (FCO),147552,388.68 
UK Trade and Investment Programme,UK Trade and Investment Programme,15/06/2011 ,Sponsors Grants - Trade Show Access Programme,UK Trade & Investment - Sectors Group,UK FASHION AND TEXTILE ASSOCIATION LTD (UKFT),148409,24000.00 
UK Trade and Investment Programme,UK Trade and Investment Programme,15/06/2011 ,"Other IT Services - UKTI Customer Data Standards, Migration and Mining",UK Trade & Investment - IT and Finance Group,S & S DATA LTD,148363,6240.00 
UK Trade and Investment Programme,UK Trade and Investment Programme,16/06/2011 ,Authoring and Copywriting Costs - Inward Investment Research,UK Trade & Investment - Marketing & Communications Group,B2B INTERNATIONAL LIMITED,148487,18485.65 
UK Trade and Investment Programme,UK Trade and Investment Programme,16/06/2011 ,Travel and Subsistence O'seas - Market Visit Scheme,UK Trade & Investment - Regional Directorate,CAVALIER INCORPORATED LTD,148491,260.00 
UK Trade and Investment Programme,UK Trade and Investment Programme,16/06/2011 ,IT Managed Service Contracts - Online,UK Trade & Investment - Marketing & Communications Group,CAKE SOLUTIONS LTD,148465,4176.00 
UK Trade and Investment Programme,UK Trade and Investment Programme,16/06/2011 ,IT Managed Service Contracts - Online,UK Trade & Investment - Marketing & Communications Group,CAKE SOLUTIONS LTD,148466,6624.00 
UK Trade and Investment Programme,UK Trade and Investment Programme,16/06/2011 ,Online Services charges - Online,UK Trade & Investment - Marketing & Communications Group,S & S DATA LTD,148362,2291.45 
UK Trade and Investment Programme,UK Trade and Investment Programme,16/06/2011 ,Scheme Management Charges - Passport Business Development Credits,UK Trade & Investment - Regional Directorate,ACTIVE IQ LTD,148315,154.44 
UK Trade and Investment Programme,UK Trade and Investment Programme,16/06/2011 ,Scheme Management Charges - Passport Business Development Credits,UK Trade & Investment - Regional Directorate,ARBLASTER AND CLARKE WINETOURS LTD,148276,1000.00 
UK Trade and Investment Programme,UK Trade and Investment Programme,16/06/2011 ,Scheme Management Charges - Passport Business Development Credits,UK Trade & Investment - Regional Directorate,CLUES COMMUNICATIONS LTD,148206,443.35 
UK Trade and Investment Programme,UK Trade and Investment Programme,16/06/2011 ,Scheme Management Charges - Passport Business Development Credits,UK Trade & Investment - Regional Directorate,EF NASH LTD T/A NASH OILS,148280,250.00 
UK Trade and Investment Programme,UK Trade and Investment Programme,16/06/2011 ,Scheme Management Charges - Passport Business Development Credits,UK Trade & Investment - Regional Directorate,EF NASH LTD T/A NASH OILS,148281,1250.00 
UK Trade and Investment Programme,UK Trade and Investment Programme,16/06/2011 ,Scheme Management Charges - Passport Business Development Credits,UK Trade & Investment - Regional Directorate,MUTNEY'S PROFESSIONAL PET CARE LTD,148279,272.70 
UK Trade and Investment Programme,UK Trade and Investment Programme,16/06/2011 ,Scheme Management Charges - Passport Business Development Credits,UK Trade & Investment - Regional Directorate,NETSHIELD LTD,148278,335.45 
UK Trade and Investment Programme,UK Trade and Investment Programme,16/06/2011 ,Scheme Management Charges - Passport Business Development Credits,UK Trade & Investment - Regional Directorate,SMS MACHINES AND AUTOMATION LTD,148277,1172.98 
UK Trade and Investment Programme,UK Trade and Investment Programme,16/06/2011 ,Scheme Management Charges - Passport Business Development Credits,UK Trade & Investment - Regional Directorate,THE FAIR FASHION COMPANY LTD,148275,143.20 
UK Trade and Investment Programme,UK Trade and Investment Programme,16/06/2011 ,Scheme Management Charges - Passport Business Development Credits,UK Trade & Investment - Regional Directorate,THE FAIR FASHION COMPANY LTD,148275,666.07 
UK Trade and Investment Programme,UK Trade and Investment Programme,16/06/2011 ,Scheme Management Charges - Passport Business Development Credits,UK Trade & Investment - Regional Directorate,THE FAIR FASHION COMPANY LTD,148275,690.73 
UK Trade and Investment Programme,UK Trade and Investment Programme,16/06/2011 ,Printing Costs - Sector Champion,UK Trade & Investment - Business Group,LYRECO UK LTD,148095,67.18 
UK Trade and Investment Programme,UK Trade and Investment Programme,16/06/2011 ,Telecommunications - Trade Development Support,UK Trade & Investment - International Group,ACT TELECONFERENCING LTD,148488,30.28 
UK Trade and Investment Programme,UK Trade and Investment Programme,16/06/2011 ,Design Services - Trade Marketing Publicity,UK Trade & Investment - Marketing & Communications Group,CLEARVIEW IMAGING SERVICES LTD,148490,380.00 
UK Trade and Investment Programme,UK Trade and Investment Programme,17/06/2011 ,Authoring and Copywriting Costs - Inward Investment Publications,UK Trade & Investment - Marketing & Communications Group,LORRAINE SHAH,148512,35.00 
UK Trade and Investment Programme,UK Trade and Investment Programme,17/06/2011 ,Design Services - Inward Investment Publicity,UK Trade & Investment - Marketing & Communications Group,ACUMEN DESIGN CONSULTANCY LTD,148500,450.00 
UK Trade and Investment Programme,UK Trade and Investment Programme,17/06/2011 ,Design Services - Inward Investment Publicity,UK Trade & Investment - Marketing & Communications Group,ACUMEN DESIGN CONSULTANCY LTD,148501,225.00 
UK Trade and Investment Programme,UK Trade and Investment Programme,17/06/2011 ,Design Services - Inward Investment Publicity,UK Trade & Investment - Marketing Group,ACUMEN DESIGN CONSULTANCY LTD,148502,855.00 
UK Trade and Investment Programme,UK Trade and Investment Programme,17/06/2011 ,Design Services - Inward Investment Publicity,UK Trade & Investment - Marketing Group,ACUMEN DESIGN CONSULTANCY LTD,148504,210.00 
UK Trade and Investment Programme,UK Trade and Investment Programme,17/06/2011 ,Design Services - Inward Investment Publicity,UK Trade & Investment - Marketing Group,ACUMEN DESIGN CONSULTANCY LTD,148508,419.00 
UK Trade and Investment Programme,UK Trade and Investment Programme,17/06/2011 ,Design Services - Inward Investment Publicity,UK Trade & Investment - Marketing Group,ACUMEN DESIGN CONSULTANCY LTD,148529,0.50 
UK Trade and Investment Programme,UK Trade and Investment Programme,17/06/2011 ,Design Services - Inward Investment Publicity,UK Trade & Investment - Marketing Group,ACUMEN DESIGN CONSULTANCY LTD,148529,385.00 
UK Trade and Investment Programme,UK Trade and Investment Programme,17/06/2011 ,Media and Press Services - Inward Investment Publicity,UK Trade & Investment - Marketing Group,BURSON-MARSTELLER,148285,2772.32 
UK Trade and Investment Programme,UK Trade and Investment Programme,17/06/2011 ,Travel and Subsistence O'seas - Market Visit Scheme,UK Trade & Investment - Regional Directorate,DISUK LTD,148514,600.00 
UK Trade and Investment Programme,UK Trade and Investment Programme,17/06/2011 ,Travel and Subsistence O'seas - Market Visit Scheme,UK Trade & Investment - Regional Directorate,EMTEC COLLEGES LTD,148515,750.00 
UK Trade and Investment Programme,UK Trade and Investment Programme,17/06/2011 ,Travel and Subsistence O'seas - Market Visit Scheme,UK Trade & Investment - Regional Directorate,GREENAPPLE SYSTEMS LTD,148524,240.00 
UK Trade and Investment Programme,UK Trade and Investment Programme,17/06/2011 ,Travel and Subsistence O'seas - Market Visit Scheme,UK Trade & Investment - Regional Directorate,MISIRLI UK LTD,148498,400.00 
UK Trade and Investment Programme,UK Trade and Investment Programme,17/06/2011 ,Travel and Subsistence O'seas - Market Visit Scheme,UK Trade & Investment - Regional Directorate,NEFTEMER LTD,148525,600.00 
UK Trade and Investment Programme,UK Trade and Investment Programme,17/06/2011 ,Travel and Subsistence O'seas - Market Visit Scheme,UK Trade & Investment - Regional Directorate,NEW VISION GROUP LTD,148526,200.00 
UK Trade and Investment Programme,UK Trade and Investment Programme,17/06/2011 ,Travel and Subsistence O'seas - Market Visit Scheme,UK Trade & Investment - Regional Directorate,PACEPACKER SERVICES LTD,148527,500.00 
UK Trade and Investment Programme,UK Trade and Investment Programme,17/06/2011 ,Travel and Subsistence O'seas - Market Visit Scheme,UK Trade & Investment - Regional Directorate,THERAPYAUDIT LTD,148523,500.00 
UK Trade and Investment Programme,UK Trade and Investment Programme,17/06/2011 ,Authoring and Copywriting Costs - Online,UK Trade & Investment - Marketing & Communications Group,TONY GREENWAY,148510,300.00 
UK Trade and Investment Programme,UK Trade and Investment Programme,17/06/2011 ,Fees and Charges - Overseas Market Introduction Service,UK Trade & Investment - IT and Finance Group,BEVERAGE BRANDS (UK) LTD,148496,425.22 
UK Trade and Investment Programme,UK Trade and Investment Programme,17/06/2011 ,Training - General - Passport Development & Events,UK Trade & Investment - Regional Directorate,JH MARKET STRATEGY LTD,148518,1254.25 
UK Trade and Investment Programme,UK Trade and Investment Programme,17/06/2011 ,Design Services - Sector Events - Abroad,UK Trade & Investment - Sectors Group,ACUMEN DESIGN CONSULTANCY LTD,148497,210.00 
UK Trade and Investment Programme,UK Trade and Investment Programme,17/06/2011 ,Stand Space/rental costs - Sector Events - Abroad,UK Trade & Investment - Sectors Group,CARTWRIGHT PICKARD ARCHITECTS LTD,148467,1000.00 
UK Trade and Investment Programme,UK Trade and Investment Programme,17/06/2011 ,Design Services - Sector Events - UK,UK Trade & Investment - Sectors Group,ACUMEN DESIGN CONSULTANCY LTD,148519,630.00 
UK Trade and Investment Programme,UK Trade and Investment Programme,17/06/2011 ,Other Accomodation costs - Sector Events - UK,UK Trade & Investment - Sectors Group,COCKPIT HOTEL (LONDON) LTD T/A IBIS LONDON EARLS COURT,148489,155025.00 
UK Trade and Investment Programme,UK Trade and Investment Programme,17/06/2011 ,Travel and Subsistence UK - Sector Events - UK,UK Trade & Investment - Sectors Group,"Personal Expense, Name Witheld",505183,141.00 
UK Trade and Investment Programme,UK Trade and Investment Programme,17/06/2011 ,Event Management - Sector Events - UK,UK Trade & Investment - Sectors Group,RENEWABLE UK ASSOCIATION LTD T/A RENEWABLE UK,148513,765.00 
UK Trade and Investment Programme,UK Trade and Investment Programme,17/06/2011 ,Printing Costs - Trade Marketing Events,UK Trade & Investment - Regional Directorate,ADECS LTD T/A ADECS PROFITA,148499,201.60 
UK Trade and Investment Programme,UK Trade and Investment Programme,17/06/2011 ,Stand Construction Costs - Trade Marketing Events,UK Trade & Investment - Defence and Security Organisation,EDGE EXHIBITION DESIGN LTD,148493,5124.00 
UK Trade and Investment Programme,UK Trade and Investment Programme,17/06/2011 ,Courier Services - Trade Marketing Events,UK Trade & Investment - Marketing & Communications Group,ELITEXPO CARGO SYSTEMS INC,147490,420.50 
UK Trade and Investment Programme,UK Trade and Investment Programme,17/06/2011 ,Other postage costs - Trade Marketing Events,UK Trade & Investment - Marketing & Communications Group,ELITEXPO CARGO SYSTEMS INC,147490,478.96 
UK Trade and Investment Programme,UK Trade and Investment Programme,17/06/2011 ,Stand Construction Costs - Trade Marketing Events,UK Trade & Investment - Marketing & Communications Group,INNOVISION EVENTS LTD,148531,10865.00 
UK Trade and Investment Programme,UK Trade and Investment Programme,17/06/2011 ,Stand Space/rental costs - Trade Marketing Events,UK Trade & Investment - Regional Directorate,REGIONAL INTERNATIONAL BUSINESS CONVENTION LTD,148516,8012.00 
UK Trade and Investment Programme,UK Trade and Investment Programme,17/06/2011 ,Telecommunications - Trade Marketing Events,UK Trade & Investment - Regional Directorate,THUS LTD,148532,2.03 
UK Trade and Investment Programme,UK Trade and Investment Programme,17/06/2011 ,Design Services - Trade Marketing Publicity,UK Trade & Investment - Marketing & Communications Group,ACUMEN DESIGN CONSULTANCY LTD,148503,70.00 
UK Trade and Investment Programme,UK Trade and Investment Programme,17/06/2011 ,Design Services - Trade Marketing Publicity,UK Trade & Investment - Marketing & Communications Group,ACUMEN DESIGN CONSULTANCY LTD,148505,420.00 
UK Trade and Investment Programme,UK Trade and Investment Programme,17/06/2011 ,Design Services - Trade Marketing Publicity,UK Trade & Investment - Marketing & Communications Group,ACUMEN DESIGN CONSULTANCY LTD,148507,70.00 
UK Trade and Investment Programme,UK Trade and Investment Programme,17/06/2011 ,Media and Press Services - Trade Marketing Publicity,UK Trade & Investment - Regional Directorate,COI COMMUNICATIONS,148511,50000.00 
UK Trade and Investment Programme,UK Trade and Investment Programme,20/06/2011 ,Scheme Management Charges - FDI Delivery Contract,UK Trade & Investment - Business Group,AON HEWITT LTD,148537,3545.50 
UK Trade and Investment Programme,UK Trade and Investment Programme,20/06/2011 ,Scheme Management Charges - Fiscal Compass Programme,UK Trade & Investment - Sectors Group,UK INDIA BUSINESS COUNCIL,148259,690.00 
UK Trade and Investment Programme,UK Trade and Investment Programme,20/06/2011 ,Travel and Subsistence O'seas - Gateway to Global Growth,UK Trade & Investment - Regional Directorate,CHINA BRITAIN BUSINESS COUNCIL,148600,826.00 
UK Trade and Investment Programme,UK Trade and Investment Programme,20/06/2011 ,Event Management - Gateway to Global Growth,UK Trade & Investment - Regional Directorate,CHINA BRITAIN BUSINESS COUNCIL,148600,5245.00 
UK Trade and Investment Programme,UK Trade and Investment Programme,20/06/2011 ,Travel and Subsistence O'seas - International Trade Team Contracting,UK Trade & Investment - Regional Directorate,GOLDEN VISION LTD,148596,453.78 
UK Trade and Investment Programme,UK Trade and Investment Programme,20/06/2011 ,Scheme Management Charges - International Trade Team Contracting,UK Trade & Investment - Regional Directorate,GOLDEN VISION LTD,148596,4524.00 
UK Trade and Investment Programme,UK Trade and Investment Programme,20/06/2011 ,Travel and Subsistence O'seas - Market Visit Scheme,UK Trade & Investment - Regional Directorate,BELTON CHEESE LTD,148602,500.00 
UK Trade and Investment Programme,UK Trade and Investment Programme,20/06/2011 ,Telecommunications - Ministerial Events,UK Trade & Investment - International Group,ACT TELECONFERENCING LTD,148539,85.28 
UK Trade and Investment Programme,UK Trade and Investment Programme,20/06/2011 ,Fees and Charges - Overseas Market Introduction Service,UK Trade & Investment - IT and Finance Group,INTROTECH INTNL. LTD,148528,851.06 
UK Trade and Investment Programme,UK Trade and Investment Programme,20/06/2011 ,Research and Development Costs - Performance Measurement,UK Trade & Investment - Economics and Evaluation,OMB RESEARCH LTD,148549,796.20 
UK Trade and Investment Programme,UK Trade and Investment Programme,20/06/2011 ,Research and Development Costs - Performance Measurement,UK Trade & Investment - Economics and Evaluation,OMB RESEARCH LTD,148549,2897.80 
UK Trade and Investment Programme,UK Trade and Investment Programme,20/06/2011 ,Scheme Management Charges - Sector Champion,UK Trade & Investment - Business Group,PA CONSULTING GROUP LTD,148535,91158.26 
UK Trade and Investment Programme,UK Trade and Investment Programme,20/06/2011 ,Advertising - Sector Events - Abroad,UK Trade & Investment - Sectors Group,MIT PUBLISHING LTD,148603,2750.00 
UK Trade and Investment Programme,UK Trade and Investment Programme,20/06/2011 ,Event Management - Sector Events - UK,UK Trade & Investment - Sectors Group,"Personal Expense, Name Witheld",505184,184.95 
UK Trade and Investment Programme,UK Trade and Investment Programme,20/06/2011 ,Event Management - Trade Development Support,UK Trade & Investment - International Group,SUE DENNIS,148517,75.00 
UK Trade and Investment Programme,UK Trade and Investment Programme,20/06/2011 ,Event Management - Trade Development Support,UK Trade & Investment - International Group,WINGS LUXURY TRAVEL LTD,148534,395.00 
UK Trade and Investment Programme,UK Trade and Investment Programme,20/06/2011 ,Stand Construction Costs - Trade Marketing Events,UK Trade & Investment - Marketing & Communications Group,CLEARVIEW IMAGING SERVICES LTD,148530,1017.50 
UK Trade and Investment Programme,UK Trade and Investment Programme,20/06/2011 ,Stand Construction Costs - Trade Marketing Events,UK Trade & Investment - Marketing & Communications Group,CLEARVIEW IMAGING SERVICES LTD,148594,985.00 
UK Trade and Investment Programme,UK Trade and Investment Programme,20/06/2011 ,Design Services - Trade Marketing Events,UK Trade & Investment - Marketing & Communications Group,EXTREME EXHIBITIONS LTD,148593,450.00 
UK Trade and Investment Programme,UK Trade and Investment Programme,20/06/2011 ,Venue Hire - Trade Marketing Events,UK Trade & Investment - Regional Directorate,MIDLAND HOTELS LTD T/A HALLMARK MIDLAND DERBY,148540,764.59 
UK Trade and Investment Programme,UK Trade and Investment Programme,20/06/2011 ,Video Production Services - Trade Marketing Publication,UK Trade & Investment - Marketing & Communications Group,S K & E S MAHER T/A SKM PRODUCTIONS,148595,620.00 
UK Trade and Investment Programme,UK Trade and Investment Programme,20/06/2011 ,Basic Grants - Trade Show Access Programme,UK Trade & Investment - Sectors Group,BIRMINGHAM CHAMBER OF COMMERCE AND INDUSTRY,148598,16800.00 
UK Trade and Investment Programme,UK Trade and Investment Programme,20/06/2011 ,Sponsors Grants - Trade Show Access Programme,UK Trade & Investment - Sectors Group,BIRMINGHAM CHAMBER OF COMMERCE AND INDUSTRY,148599,2880.00 
UK Trade and Investment Programme,UK Trade and Investment Programme,20/06/2011 ,Sponsors Grants - Trade Show Access Programme,UK Trade & Investment - Sectors Group,ENGINEERING INDUSTRIES ASSOCIATION,148536,240.00 
UK Trade and Investment Programme,UK Trade and Investment Programme,20/06/2011 ,Basic Grants - Trade Show Access Programme,UK Trade & Investment - Sectors Group,ENGINEERING INDUSTRIES ASSOCIATION,148538,1400.00 
UK Trade and Investment Programme,UK Trade and Investment Programme,21/06/2011 ,Development Cost - Website (AUC) - Clearing Account - Balance Sheet,UK Trade & Investment - IT and Finance Group,ADECCO UK LTD,148611,844.87 
UK Trade and Investment Programme,UK Trade and Investment Programme,21/06/2011 ,Travel and Subsistence O'seas - International Trade Team Contracting,UK Trade & Investment - Regional Directorate,GOLDEN VISION LTD,148597,592.56 
UK Trade and Investment Programme,UK Trade and Investment Programme,21/06/2011 ,Scheme Management Charges - International Trade Team Contracting,UK Trade & Investment - Regional Directorate,GOLDEN VISION LTD,148597,6438.00 
UK Trade and Investment Programme,UK Trade and Investment Programme,21/06/2011 ,Authoring and Copywriting Costs - Inward Investment Publications,UK Trade & Investment - Marketing & Communications Group,WORDSMITHS EDITORIAL SERVICES LTD,148606,8325.00 
UK Trade and Investment Programme,UK Trade and Investment Programme,21/06/2011 ,Travel and Subsistence O'seas - Market Visit Scheme,UK Trade & Investment - Regional Directorate,EXCLUSIVE COLLECTIONS LTD,148654,500.00 
UK Trade and Investment Programme,UK Trade and Investment Programme,21/06/2011 ,Travel and Subsistence UK - Outward missions,UK Trade & Investment - Sectors Group,"Personal Expense, Name Witheld",505185,857.62 
UK Trade and Investment Programme,UK Trade and Investment Programme,21/06/2011 ,Event Management - Outward missions,UK Trade & Investment - Sectors Group,PRESTACE LTD T/A DESIGNERS BLOCK,148641,4500.00 
UK Trade and Investment Programme,UK Trade and Investment Programme,21/06/2011 ,Event Management - Outward missions,UK Trade & Investment - Sectors Group,RAILWAY INDUSTRY ASSOCIATION,148608,11250.00 
UK Trade and Investment Programme,UK Trade and Investment Programme,21/06/2011 ,Scheme Management Charges - Passport Business Development Credits,UK Trade & Investment - Regional Directorate,ANNE TYRRELL LTD T/A ANNE TYRRELL DESIGNS,148480,494.32 
UK Trade and Investment Programme,UK Trade and Investment Programme,21/06/2011 ,Scheme Management Charges - Passport Business Development Credits,UK Trade & Investment - Regional Directorate,DESIGN PLUS PACKAGING LTD,148521,601.00 
UK Trade and Investment Programme,UK Trade and Investment Programme,21/06/2011 ,Scheme Management Charges - Passport Business Development Credits,UK Trade & Investment - Regional Directorate,INTER TECHNOLOGIES LTD,148478,761.64 
UK Trade and Investment Programme,UK Trade and Investment Programme,21/06/2011 ,Scheme Management Charges - Passport Business Development Credits,UK Trade & Investment - Regional Directorate,LONDON HOUSE INTERNATIONAL LTD,148479,446.65 
UK Trade and Investment Programme,UK Trade and Investment Programme,21/06/2011 ,Scheme Management Charges - Passport Business Development Credits,UK Trade & Investment - Regional Directorate,SHE KNOWS LTD,148522,518.65 
UK Trade and Investment Programme,UK Trade and Investment Programme,21/06/2011 ,Scheme Management Charges - Passport Business Development Credits,UK Trade & Investment - Regional Directorate,THE MOULTON BICYCLE COMPANY LTD,148481,1500.00 
UK Trade and Investment Programme,UK Trade and Investment Programme,21/06/2011 ,Venue Hire - Passport Development & Events,UK Trade & Investment - Regional Directorate,YEW LODGE HOTEL,148657,637.50 
UK Trade and Investment Programme,UK Trade and Investment Programme,21/06/2011 ,Design Services - Sector Events - UK,UK Trade & Investment - Sectors Group4,ACUMEN DESIGN CONSULTANCY LTD,148653,4656.00 
UK Trade and Investment Programme,UK Trade and Investment Programme,21/06/2011 ,Event Management - Sector Events - UK,UK Trade & Investment - Sectors Group,BUSINESS TO BUSINESS EXHIBITIONS LTD,148616,30000.00 
UK Trade and Investment Programme,UK Trade and Investment Programme,21/06/2011 ,Event Management - Trade Development Support,UK Trade & Investment - International Group,WINGS LUXURY TRAVEL LTD,148533,-840.00 
UK Trade and Investment Programme,UK Trade and Investment Programme,21/06/2011 ,Event Management - Trade Development Support,UK Trade & Investment - International Group,WINGS LUXURY TRAVEL LTD,148533,56.40 
UK Trade and Investment Programme,UK Trade and Investment Programme,21/06/2011 ,Event Management - Trade Development Support,UK Trade & Investment - International Group,WINGS LUXURY TRAVEL LTD,148533,257.00 
UK Trade and Investment Programme,UK Trade and Investment Programme,21/06/2011 ,Event Management - Trade Development Support,UK Trade & Investment - International Group,WINGS LUXURY TRAVEL LTD,148533,793.00 
UK Trade and Investment Programme,UK Trade and Investment Programme,21/06/2011 ,Event Management - Trade Development Support,UK Trade & Investment - International Group,WINGS LUXURY TRAVEL LTD,148533,840.00 
UK Trade and Investment Programme,UK Trade and Investment Programme,21/06/2011 ,Stand Construction Costs - Trade Marketing Events,UK Trade & Investment - Marketing & Communications Group,CLEARVIEW IMAGING SERVICES LTD,148659,300.00 
UK Trade and Investment Programme,UK Trade and Investment Programme,21/06/2011 ,Stand Construction Costs - Trade Marketing Events,UK Trade & Investment - Marketing & Communications Group,CLEARVIEW IMAGING SERVICES LTD,148659,1400.00 
UK Trade and Investment Programme,UK Trade and Investment Programme,21/06/2011 ,Venue Hire - Trade Marketing Events,UK Trade & Investment - Regional Directorate,LINDLEY CATERING LTD,148601,-200.00 
UK Trade and Investment Programme,UK Trade and Investment Programme,21/06/2011 ,Venue Hire - Trade Marketing Events,UK Trade & Investment - Regional Directorate,LINDLEY CATERING LTD,148601,380.63 
UK Trade and Investment Programme,UK Trade and Investment Programme,21/06/2011 ,Training - Languages - Trade Marketing Events,UK Trade & Investment - Regional Directorate,STELLA KENWAY,148604,300.00 
UK Trade and Investment Programme,UK Trade and Investment Programme,21/06/2011 ,Maintenance of IT equipment - Trade Marketing Publication,UK Trade & Investment - Marketing & Communications Group,BRAY LEINO LTD,148647,150.00 
UK Trade and Investment Programme,UK Trade and Investment Programme,21/06/2011 ,Authoring and Copywriting Costs - Trade Marketing Publication,UK Trade & Investment - Sectors Group,LORRAINE SHAH,148605,415.40 
UK Trade and Investment Programme,UK Trade and Investment Programme,21/06/2011 ,Professional Subscriptions - Trade Marketing Publicity,UK Trade & Investment - Marketing & Communications Group,DOD'S PARLIAMENTARY COMMUNICATIONS LTD (WESTMINSTER EXPLAINED),148652,634.62 
UK Trade and Investment Programme,UK Trade and Investment Programme,21/06/2011 ,Basic Grants - Trade Show Access Programme,UK Trade & Investment - Sectors Group,BRITISH PIG ASSOCIATION,148656,9000.00 
UK Trade and Investment Programme,UK Trade and Investment Programme,21/06/2011 ,Sponsors Grants - Trade Show Access Programme,UK Trade & Investment - Sectors Group,BRITISH PIG ASSOCIATION,148658,1200.00 
UK Trade and Investment Programme,UK Trade and Investment Programme,22/06/2011 ,Travel and Subsistence O'seas - ,UK Trade & Investment - Defence and Security Organisation,FOREIGN AND COMMONWEALTH OFFICE (FCO),147935,6758.67 
UK Trade and Investment Programme,UK Trade and Investment Programme,22/06/2011 ,Venue Hire - ,UK Trade & Investment - Defence and Security Organisation,FOREIGN AND COMMONWEALTH OFFICE (FCO),147954,19.28 
UK Trade and Investment Programme,UK Trade and Investment Programme,22/06/2011 ,Venue Hire - ,UK Trade & Investment - Defence and Security Organisation,FOREIGN AND COMMONWEALTH OFFICE (FCO),147954,65.36 
UK Trade and Investment Programme,UK Trade and Investment Programme,22/06/2011 ,Travel and Subsistence O'seas - ,UK Trade & Investment - Defence and Security Organisation,FOREIGN AND COMMONWEALTH OFFICE (FCO),147955,71.33 
UK Trade and Investment Programme,UK Trade and Investment Programme,22/06/2011 ,Travel and Subsistence O'seas - ,UK Trade & Investment - Defence and Security Organisation,FOREIGN AND COMMONWEALTH OFFICE (FCO),147956,172.55 
UK Trade and Investment Programme,UK Trade and Investment Programme,22/06/2011 ,Scheme Management Charges - ,UK Trade & Investment - Defence and Security Organisation,PAUL WILLIAMS,148683,10266.88 
UK Trade and Investment Programme,UK Trade and Investment Programme,22/06/2011 ,Other Accomodation costs - ,UK Trade & Investment - Strategy and Human Resources Group,FOREIGN AND COMMONWEALTH OFFICE (FCO),147939,12.60 
UK Trade and Investment Programme,UK Trade and Investment Programme,22/06/2011 ,Other Accomodation costs - ,UK Trade & Investment - Strategy and Human Resources Group,FOREIGN AND COMMONWEALTH OFFICE (FCO),147940,275.33 
UK Trade and Investment Programme,UK Trade and Investment Programme,22/06/2011 ,Scheme Management Charges - Fiscal Compass Programme,UK Trade & Investment - Sectors Group,PA CONSULTING GROUP LTD,148707,199925.77 
UK Trade and Investment Programme,UK Trade and Investment Programme,22/06/2011 ,Scheme Management Charges - International Trade Team Contracting,UK Trade & Investment - Regional Directorate,CHAMBERLINK LTD T/A BUSINESS SUPPORT SOLUTIONS,148708,191666.67 
UK Trade and Investment Programme,UK Trade and Investment Programme,22/06/2011 ,Event Management - Inward Investment Publicity,UK Trade & Investment - Marketing Group,FOREIGN AND COMMONWEALTH OFFICE (FCO),147932,2381.30 
UK Trade and Investment Programme,UK Trade and Investment Programme,22/06/2011 ,Event Management - Inward Investment Publicity,UK Trade & Investment - Marketing Group,FOREIGN AND COMMONWEALTH OFFICE (FCO),147933,6539.46 
UK Trade and Investment Programme,UK Trade and Investment Programme,22/06/2011 ,Event Management - Inward Investment Publicity,UK Trade & Investment - Marketing & Communications Group,FOREIGN AND COMMONWEALTH OFFICE (FCO),147934,2396.00 
UK Trade and Investment Programme,UK Trade and Investment Programme,22/06/2011 ,Event Management - Inward Investment Publicity,UK Trade & Investment - Marketing & Communications Group,FOREIGN AND COMMONWEALTH OFFICE (FCO),147942,938.70 
UK Trade and Investment Programme,UK Trade and Investment Programme,22/06/2011 ,Design Services - Inward Investment Publicity,UK Trade & Investment - Marketing & Communications Group,FOREIGN AND COMMONWEALTH OFFICE (FCO),147944,3633.63 
UK Trade and Investment Programme,UK Trade and Investment Programme,22/06/2011 ,Event Management - Inward Investment Publicity,UK Trade & Investment - Marketing & Communications Group,FOREIGN AND COMMONWEALTH OFFICE (FCO),147946,367.13 
UK Trade and Investment Programme,UK Trade and Investment Programme,22/06/2011 ,Event Management - Inward Investment Publicity,UK Trade & Investment - Marketing & Communications Group,FOREIGN AND COMMONWEALTH OFFICE (FCO),147948,1247.14 
UK Trade and Investment Programme,UK Trade and Investment Programme,22/06/2011 ,Event Management - Inward Investment Publicity,UK Trade & Investment - Marketing & Communications Group,FOREIGN AND COMMONWEALTH OFFICE (FCO),147950,2224.13 
UK Trade and Investment Programme,UK Trade and Investment Programme,22/06/2011 ,Event Management - Inward Investment Publicity,UK Trade & Investment - Marketing & Communications Group,FOREIGN AND COMMONWEALTH OFFICE (FCO),147952,66.21 
UK Trade and Investment Programme,UK Trade and Investment Programme,22/06/2011 ,Event Management - Inward Investment Publicity,UK Trade & Investment - Marketing & Communications Group,FOREIGN AND COMMONWEALTH OFFICE (FCO),147952,1000.00 
UK Trade and Investment Programme,UK Trade and Investment Programme,22/06/2011 ,Printing Costs - Inward Investment Publicity,UK Trade & Investment - Marketing & Communications Group,FOREIGN AND COMMONWEALTH OFFICE (FCO),147953,17.30 
UK Trade and Investment Programme,UK Trade and Investment Programme,22/06/2011 ,Event Management - Inward Missions,UK Trade & Investment - Sectors Group,BRANDON HILL COMMUNICATIONS LTD,148690,13990.92 
UK Trade and Investment Programme,UK Trade and Investment Programme,22/06/2011 ,Travel and Subsistence UK - Inward Missions,UK Trade & Investment - Sectors Group,FOREIGN AND COMMONWEALTH OFFICE (FCO),147958,218.41 
UK Trade and Investment Programme,UK Trade and Investment Programme,22/06/2011 ,Travel and Subsistence O'seas - Market Visit Scheme,UK Trade & Investment - Regional Directorate,ABYSS (UK) LTD,148691,550.00 
UK Trade and Investment Programme,UK Trade and Investment Programme,22/06/2011 ,Travel and Subsistence O'seas - Market Visit Scheme,UK Trade & Investment - Regional Directorate,ADVFN PLC,148687,800.00 
UK Trade and Investment Programme,UK Trade and Investment Programme,22/06/2011 ,Travel and Subsistence O'seas - Market Visit Scheme,UK Trade & Investment - Regional Directorate,COMPLETELY NOVEL LTD,148700,500.00 
UK Trade and Investment Programme,UK Trade and Investment Programme,22/06/2011 ,Travel and Subsistence O'seas - Market Visit Scheme,UK Trade & Investment - Regional Directorate,FANNIE SCHIAVONI,148693,250.00 
UK Trade and Investment Programme,UK Trade and Investment Programme,22/06/2011 ,Travel and Subsistence O'seas - Market Visit Scheme,UK Trade & Investment - Regional Directorate,FELICITY BROWN LTD,148684,250.00 
UK Trade and Investment Programme,UK Trade and Investment Programme,22/06/2011 ,Travel and Subsistence O'seas - Market Visit Scheme,UK Trade & Investment - Regional Directorate,MINUTEBOX LTD,148694,500.00 
UK Trade and Investment Programme,UK Trade and Investment Programme,22/06/2011 ,Travel and Subsistence O'seas - Market Visit Scheme,UK Trade & Investment - Regional Directorate,SEBASTIAN COX T/A SEBASTIAN COX FURNITURE,148701,200.00 
UK Trade and Investment Programme,UK Trade and Investment Programme,22/06/2011 ,Travel and Subsistence O'seas - Market Visit Scheme,UK Trade & Investment - Regional Directorate,SOMETHIN' ELSE SOUND DIRECTIONS LTD,148682,500.00 
UK Trade and Investment Programme,UK Trade and Investment Programme,22/06/2011 ,Travel and Subsistence O'seas - Market Visit Scheme,UK Trade & Investment - Regional Directorate,TIM SOAR LTD,148692,250.00 
UK Trade and Investment Programme,UK Trade and Investment Programme,22/06/2011 ,Event Management - Markets Fund,UK Trade & Investment - International Group,FOREIGN AND COMMONWEALTH OFFICE (FCO),147943,112.49 
UK Trade and Investment Programme,UK Trade and Investment Programme,22/06/2011 ,Event Management - NINJ Sector Events,UK Trade & Investment - Sectors Group,BRANDON HILL COMMUNICATIONS LTD,146030,-16097.01 
UK Trade and Investment Programme,UK Trade and Investment Programme,22/06/2011 ,Authoring and Copywriting Costs - Online,UK Trade & Investment - Marketing & Communications Group,TONY GREENWAY,148699,300.00 
UK Trade and Investment Programme,UK Trade and Investment Programme,22/06/2011 ,Venue Hire - Passport Development & Events,UK Trade & Investment - Regional Directorate,DE VERE DARESBURY PARK HOTEL,148710,901.67 
UK Trade and Investment Programme,UK Trade and Investment Programme,22/06/2011 ,Scheme Management Charges - R&D Programme Sector Specialists,UK Trade & Investment - Business Group,PA CONSULTING GROUP LTD,148674,301386.01 
UK Trade and Investment Programme,UK Trade and Investment Programme,22/06/2011 ,Event Management - Sector Events - UK,UK Trade & Investment - Sectors Group,PARK PLAZA VICTORIA,148675,162.00 
UK Trade and Investment Programme,UK Trade and Investment Programme,22/06/2011 ,Event Management - Sector Events - UK,UK Trade & Investment - Sectors Group,PARK PLAZA VICTORIA,148676,162.00 
UK Trade and Investment Programme,UK Trade and Investment Programme,22/06/2011 ,Event Management - Sector Events - UK,UK Trade & Investment - Sectors Group,PARK PLAZA VICTORIA,148677,162.00 
UK Trade and Investment Programme,UK Trade and Investment Programme,22/06/2011 ,Event Management - Sector Events - UK,UK Trade & Investment - Sectors Group,PARK PLAZA VICTORIA,148678,162.00 
UK Trade and Investment Programme,UK Trade and Investment Programme,22/06/2011 ,Other Accomodation costs - Sector Events - UK,UK Trade & Investment - Sectors Group,RADISSON BLU HOTEL DURHAM,148673,4094.40 
UK Trade and Investment Programme,UK Trade and Investment Programme,22/06/2011 ,Event Management - Trade Development Support,UK Trade & Investment - International Group,FOREIGN AND COMMONWEALTH OFFICE (FCO),147951,347.42 
UK Trade and Investment Programme,UK Trade and Investment Programme,22/06/2011 ,Equipment Hire - Trade Marketing Events,UK Trade & Investment - Marketing & Communications Group,CHELSEA FC PLC,148706,905.00 
UK Trade and Investment Programme,UK Trade and Investment Programme,22/06/2011 ,Design Services - Trade Marketing Events,UK Trade & Investment - Marketing & Communications Group,CLEARVIEW IMAGING SERVICES LTD,148679,195.00 
UK Trade and Investment Programme,UK Trade and Investment Programme,22/06/2011 ,Design Services - Trade Marketing Events,UK Trade & Investment - Marketing & Communications Group,CLEARVIEW IMAGING SERVICES LTD,148711,325.00 
UK Trade and Investment Programme,UK Trade and Investment Programme,22/06/2011 ,Design Services - Trade Marketing Events,UK Trade & Investment - Marketing & Communications Group,CLEARVIEW IMAGING SERVICES LTD,148712,975.00 
UK Trade and Investment Programme,UK Trade and Investment Programme,22/06/2011 ,Stand Construction Costs - Trade Marketing Events,UK Trade & Investment - Marketing & Communications Group,CLEARVIEW IMAGING SERVICES LTD,148713,946.00 
UK Trade and Investment Programme,UK Trade and Investment Programme,22/06/2011 ,Stand Construction Costs - Trade Marketing Events,UK Trade & Investment - Marketing & Communications Group,CLEARVIEW IMAGING SERVICES LTD,148714,2340.00 
UK Trade and Investment Programme,UK Trade and Investment Programme,22/06/2011 ,Travel and Subsistence O'seas - Trade Marketing Events,UK Trade & Investment - Regional Directorate,COLLEGE OF ACOUNTANCY & MANAGEMENT STUDIES LTD,148698,750.00 
UK Trade and Investment Programme,UK Trade and Investment Programme,22/06/2011 ,Travel and Subsistence O'seas - Trade Marketing Events,UK Trade & Investment - Regional Directorate,DAVID KOMA LTD,148695,250.00 
UK Trade and Investment Programme,UK Trade and Investment Programme,22/06/2011 ,Venue Hire - Trade Marketing Events,UK Trade & Investment - Regional Directorate,DURHAM BUSINESS GROUP (NE) LTD,148717,3000.00 
UK Trade and Investment Programme,UK Trade and Investment Programme,22/06/2011 ,Other Accomodation costs - Trade Marketing Events,UK Trade & Investment - Marketing & Communications Group,EUROPA INTERNATIONAL LTD,148703,3294.48 
UK Trade and Investment Programme,UK Trade and Investment Programme,22/06/2011 ,Travel and Subsistence O'seas - Trade Marketing Events,UK Trade & Investment - Regional Directorate,H F DESIGN LTD,148689,250.00 
UK Trade and Investment Programme,UK Trade and Investment Programme,22/06/2011 ,Catering - Trade Marketing Events,UK Trade & Investment - Regional Directorate,PHILPOTTS LTD,148719,25.05 
UK Trade and Investment Programme,UK Trade and Investment Programme,22/06/2011 ,Travel and Subsistence O'seas - Trade Marketing Events,UK Trade & Investment - Regional Directorate,SOUTH CENTRAL MANAGEMENT LTD,148688,750.00 
UK Trade and Investment Programme,UK Trade and Investment Programme,22/06/2011 ,Authoring and Copywriting Costs - Trade Marketing Publicity,UK Trade & Investment - Marketing & Communications Group,FOREIGN AND COMMONWEALTH OFFICE (FCO),147941,24484.30 
UK Trade and Investment Programme,UK Trade and Investment Programme,22/06/2011 ,Other IT Services - Trade Marketing Publicity,UK Trade & Investment - Marketing & Communications Group,PANLOGIC LTD,148705,1550.00 
UK Trade and Investment Programme,UK Trade and Investment Programme,22/06/2011 ,Basic Grants - Trade Show Access Programme,UK Trade & Investment - Sectors Group,BRITISH PIG ASSOCIATION,148696,9000.00 
UK Trade and Investment Programme,UK Trade and Investment Programme,22/06/2011 ,Sponsors Grants - Trade Show Access Programme,UK Trade & Investment - Sectors Group,BRITISH PIG ASSOCIATION,148697,1200.00 
UK Trade and Investment Programme,UK Trade and Investment Programme,22/06/2011 ,Basic Grants - Trade Show Access Programme,UK Trade & Investment - Sectors Group,THE SOCIETY OF MOTOR MANUFACTURERS AND TRADERS LTD(SMMT),148716,21000.00 
UK Trade and Investment Programme,UK Trade and Investment Programme,22/06/2011 ,Sponsors Grants - Trade Show Access Programme,UK Trade & Investment - Sectors Group,THE SOCIETY OF MOTOR MANUFACTURERS AND TRADERS LTD(SMMT),148718,3600.00 
UK Trade and Investment Programme,UK Trade and Investment Programme,22/06/2011 ,Sponsors Grants - UKIBC UK India Business Council,UK Trade & Investment - International Group,UK INDIA BUSINESS COUNCIL,148681,250000.00 
UK Trade and Investment Programme,UK Trade and Investment Programme,23/06/2011 ,Translation/Interpretation services - CBBC,UK Trade & Investment - International Group,LORRAINE SHAH,148729,639.33 
UK Trade and Investment Programme,UK Trade and Investment Programme,23/06/2011 ,Travel and Subsistence UK - ,UK Trade & Investment - Defence and Security Organisation,ARMY & NAVY CLUB,148734,78.12 
UK Trade and Investment Programme,UK Trade and Investment Programme,23/06/2011 ,Travel and Subsistence UK - ,UK Trade & Investment - Defence and Security Organisation,ARMY & NAVY CLUB,148734,781.25 
UK Trade and Investment Programme,UK Trade and Investment Programme,23/06/2011 ,Travel and Subsistence O'seas - ,UK Trade & Investment - Defence and Security Organisation,HMS RICHMOND,148720,91.00 
UK Trade and Investment Programme,UK Trade and Investment Programme,23/06/2011 ,Travel and Subsistence O'seas - ,UK Trade & Investment - Defence and Security Organisation,HMS RICHMOND,148721,2068.70 
UK Trade and Investment Programme,UK Trade and Investment Programme,23/06/2011 ,Travel and Subsistence UK - ,UK Trade & Investment - Defence and Security Organisation,SOCIETY OF MARITIME INDUSTRIES LTD,148468,132.00 
UK Trade and Investment Programme,UK Trade and Investment Programme,23/06/2011 ,Scheme Management Charges - International Trade Team Contracting,UK Trade & Investment - Regional Directorate,GWE BUSINESS WEST LTD,148735,105715.93 
UK Trade and Investment Programme,UK Trade and Investment Programme,23/06/2011 ,Scheme Management Charges - Inward Investment Research,UK Trade & Investment - Business Group,PA CONSULTING GROUP LTD,148727,36302.86 
UK Trade and Investment Programme,UK Trade and Investment Programme,23/06/2011 ,CDRoms/Offline Electronic publications - Inward Investment Research,UK Trade & Investment - Marketing & Communications Group,UK EXPORTERS LTD,148731,80.00 
UK Trade and Investment Programme,UK Trade and Investment Programme,23/06/2011 ,Catering - Inward Missions,UK Trade & Investment - Sectors Group,COPTHORNE TARA HOTEL,148733,2933.33 
UK Trade and Investment Programme,UK Trade and Investment Programme,23/06/2011 ,Event Management - Outward missions,UK Trade & Investment - Sectors Group,BUSINESS TO BUSINESS EXHIBITIONS LTD,148723,10230.00 
UK Trade and Investment Programme,UK Trade and Investment Programme,23/06/2011 ,Bank Charges - Commercial Banks - Overseas Market Introduction Service,UK Trade & Investment - IT and Finance Group,DTI OTSS COSTS A\C,148722,71.87 
UK Trade and Investment Programme,UK Trade and Investment Programme,23/06/2011 ,Scheme Management Charges - Passport Business Development Credits,UK Trade & Investment - Regional Directorate,ACTIVE IQ LTD,148547,561.58 
UK Trade and Investment Programme,UK Trade and Investment Programme,23/06/2011 ,Scheme Management Charges - Passport Business Development Credits,UK Trade & Investment - Regional Directorate,CAMLAB LTD,148609,156.83 
UK Trade and Investment Programme,UK Trade and Investment Programme,23/06/2011 ,Scheme Management Charges - Passport Business Development Credits,UK Trade & Investment - Regional Directorate,CCBT LTD,148544,257.40 
UK Trade and Investment Programme,UK Trade and Investment Programme,23/06/2011 ,Scheme Management Charges - Passport Business Development Credits,UK Trade & Investment - Regional Directorate,DAY ONE PRODUCTIONS LTD ( THE STORY SPINNER),148541,350.00 
UK Trade and Investment Programme,UK Trade and Investment Programme,23/06/2011 ,Scheme Management Charges - Passport Business Development Credits,UK Trade & Investment - Regional Directorate,HILINE TECHNOLOGIES LTD T/A ELEMENT 7,148542,1500.00 
UK Trade and Investment Programme,UK Trade and Investment Programme,23/06/2011 ,Scheme Management Charges - Passport Business Development Credits,UK Trade & Investment - Regional Directorate,PLAYDALE PLAYGROUNDS LTD,148610,122.74 
UK Trade and Investment Programme,UK Trade and Investment Programme,23/06/2011 ,Scheme Management Charges - Passport Business Development Credits,UK Trade & Investment - Regional Directorate,SCPR LTD,148543,1444.50 
UK Trade and Investment Programme,UK Trade and Investment Programme,23/06/2011 ,Scheme Management Charges - Passport Business Development Credits,UK Trade & Investment - Regional Directorate,THE JUICE BRAND LTD,148613,332.99 
UK Trade and Investment Programme,UK Trade and Investment Programme,23/06/2011 ,Scheme Management Charges - Passport Business Development Credits,UK Trade & Investment - Regional Directorate,THE JUICE BRAND LTD,148614,271.51 
UK Trade and Investment Programme,UK Trade and Investment Programme,23/06/2011 ,Scheme Management Charges - Passport Business Development Credits,UK Trade & Investment - Regional Directorate,THE MICROCURRENT SITE LTD,148548,198.73 
UK Trade and Investment Programme,UK Trade and Investment Programme,23/06/2011 ,Scheme Management Charges - Passport Business Development Credits,UK Trade & Investment - Regional Directorate,WORLD ACADEMIES LTD,148545,48.75 
